Cogmind - Beta 11.1 @@@ ROGUE MODE // 2022.06.23 @ 00:33:08 Player: Decinym Result: Destroyed Tau Ceti IV! Performance ------------- Evolutions (9) 4500 Regions Visited (37) 7400 Robots Destroyed (464) 2320 Value Destroyed (23603) 23603 Prototype IDs (323) 6460 Alien Tech Used (13) 2600 Bonus (53872) 53872 TOTAL SCORE: 100755 Bonus ------- High Alert Combat Kills 3843 Follower Combat Kills 2289 Network Hubs Disabled 600 Aligned with FarCom 300 Met Imprinter 300 Destroyed Z-Imprinter 1000 Triggered Deep Caves Wall 500 Exposed GOLEM Chamber 500 Met Zhirov 300 Met Warlord at Base 500 MAIN.C Attacked Warlord 500 Warlord Defense Kills 3030 A7 Reached Mainframe 300 Found Hidden Lab 3000 Used Core Reset Matrix 3000 Destroyed MAIN.C Guards 500 Met MAIN.C 5000 Destroyed MAIN.C Shell 5000 Destroyed MAIN.C 10000 Met Architect 300 Started Test 138-B 500 Started Test 138-C 8000 Destroyed A8 300 Destroyed A6 400 Destroyed A5 500 Destroyed A4 700 Destroyed A3 800 Destroyed A2 1000 Win 3000 Friendly Fire -2090 Cogmind --------- Core Integrity 719/1600 Matter 280/300 Energy 496/520 System Corruption 0% Temperature Hot (226) Movement Hovering (20) Location Subspace Parts ------- > --- POWER (3) -------- Zero-point Reactor Zero-point Reactor Zero-point Reactor > --- PROPULSION (9) --- Cooled Linear Gravjet Combat Linear Gravjet Combat Linear Gravjet Combat Linear Gravjet Combat Linear Gravjet Combat Linear Gravjet Combat Linear Gravjet Combat Linear Gravjet Combat Linear Gravjet > --- UTILITY (12) ----- Large Storage Unit ST Field Compressor Spectral Analyzer Assembled Combat Suite Experimental Armor Integrity Analyzer Quantum Capacitor Femtoactuators Experimental Powered Armor Experimental Powered Armor Experimental Powered Armor AEGIS Remote Shield > --- WEAPON (2) ------- Sigix Shearcannon > --- INVENTORY (15) --- Advanced Energy Well (500) Advanced Energy Well (500) Experimental Energy Well (600) Experimental Energy Well (600) Zionite Metafield Generator Structural Scanner Experimental Powered Armor High-powered Transdimensional Reconstructor Improved Potential Cannon A3's Sniper Rifle AD-0RF's Magmablaster Sigix Broadsword Sigix Corpse Peak State ------------ > --- POWER ------------ Zero-point Reactor Zero-point Reactor Zero-point Reactor > --- PROPULSION ------- Cooled Linear Gravjet Combat Linear Gravjet Combat Linear Gravjet Combat Linear Gravjet Combat Linear Gravjet Combat Linear Gravjet Combat Linear Gravjet Combat Linear Gravjet Combat Linear Gravjet > --- UTILITY ---------- Large Storage Unit Zionite Metafield Generator Spectral Analyzer Assembled Combat Suite Experimental Armor Integrity Analyzer Quantum Capacitor Femtoactuators Experimental Powered Armor Experimental Powered Armor Experimental Powered Armor AEGIS Remote Shield > --- WEAPON ----------- Sigix Shearcannon > --- INVENTORY -------- Advanced Energy Well Advanced Energy Well Experimental Energy Well Experimental Energy Well Structural Scanner High-powered Transdimensional Reconstructor Improved Potential Cannon A3's Sniper Rifle AD-0RF's Magmablaster Core Stripper Sigix Broadsword Sigix Corpse [Rating: 258] Favorites ----------- Power Assembled Flux Generator Engine Improved Deuterium Engine Power Core Enhanced Nuclear Core Reactor Assembled Flux Generator Propulsion Combat Linear Gravjet Treads Centrium Heavy Treads Leg Assembled Alloy Leg Wheel Armored Huge Wheel Hover Unit Combat Linear Gravjet Utility Huge Storage Unit Device Active Sensor Suite Storage Huge Storage Unit Processor Core Analyzer Hackware Hacking Suite Protection Assembled Alloy Armor Weapon Assembled Focal Cannon Energy Gun Small Laser Energy Cannon Assembled Focal Cannon Ballistic Gun 8R-AWN's Boregun Ballistic Cannon Heavy Assault Cannon Launcher Proton Missile Launcher Special Weapon RU-N14's Throwing Claymores Impact Weapon Powered Hammer Slashing Weapon Sigix Broadsword Piercing Weapon CR-A16's Behemoth Slayer Build | -11 -10 -10 -9 -9 -9 -8 -8 -7 -7 -7 -7 -7 -6 -6 -6 -6 -6 -6 -5 -5 -5 -5 -4 -4 -4 -4 -4 -3 -3 -3 -3 -2 -2 -2 -1 -1 -1 ------- Run | Scr Mat Min Mat Min Exi Min Mat Fac Low Low Zio Dee Pro Fac Ext Cet Arc Hub Fac Upp Upp Zhi Pro Fac Upp Upp War Pro Res Arm Lab Res Qua Sec Acc Com Ac0 Slots Evolved 18 | . . . 2 . . . 2 2 . . . . . 2 . . . . 2 . . . . 2 . . . . 2 . . 2 . . 2 . . Power 2 | . . . . . . . . . . . . . . 1 . . . . . . . . . . . . . . . . . . . . 1 . . Propulsion 7 | . . . 1 . . . . 1 . . . . . . . . . . . . . . . . . . . . 2 . . 2 . . 1 . . Utility 9 | . . . 1 . . . 2 1 . . . . . 1 . . . . 2 . . . . 2 . . . . . . . . . . . . . Weapon . | . . . . . . . . . . . . . . . . . . . . . . . . . . . . . . . . . . . . . . Parts Attached 600 | . 9 11 35 . 33 12 27 29 8 7 10 39 2 2 5 4 2 26 6 3 6 7 . 3 3 5 20 6 18 10 16 4 42 41 26 74 49 Power 41 | . 2 3 4 . 2 . 2 1 . . . 1 . 1 1 . . 5 . . . 1 . . . . 1 . . 3 . . 2 2 5 5 . Engine 12 | . 2 1 3 . 2 . 1 . . . . . . . . . . 3 . . . . . . . . . . . . . . . . . . . Core 7 | . . 2 1 . . . 1 1 . . . . . . 1 . . 1 . . . . . . . . . . . . . . . . . . . Reactor 22 | . . . . . . . . . . . . 1 . 1 . . . 1 . . . 1 . . . . 1 . . 3 . . 2 2 5 5 . Propulsion 96 | . 2 3 9 . 9 2 3 3 4 . 1 5 . . . 2 . . 4 . . . . . . . 7 . 6 2 6 2 5 4 5 10 2 Treads 33 | . 2 1 9 . 4 . 3 1 2 . . . . . . 2 . . 3 . . . . . . . . . 4 2 . . . . . . . Leg 25 | . . 2 . . 4 1 . . 2 . 1 5 . . . . . . 1 . . . . . . . 7 . 2 . . . . . . . . Wheel 3 | . . . . . . 1 . 2 . . . . . . . . . . . . . . . . . . . . . . . . . . . . . Hover 35 | . . . . . 1 . . . . . . . . . . . . . . . . . . . . . . . . . 6 2 5 4 5 10 2 Flight . | . . . . . . . . . . . . . . . . . . . . . . . . . . . . . . . . . . . . . . Utility 267 | . 2 1 12 . 11 3 13 11 2 5 3 20 2 1 4 2 2 12 2 3 2 6 . 3 3 4 7 4 9 2 8 1 22 21 10 36 18 Device 140 | . 1 1 1 . 4 1 1 1 1 3 2 8 . . . . 1 6 1 3 2 2 . 1 3 2 5 2 4 1 4 1 19 18 8 22 11 Storage 17 | . 1 . 1 . 1 . 3 . . . . 3 . . . . . . . . . 1 . . . . . . . . 1 . 1 . 1 3 1 Processor 19 | . . . . . 1 1 . 1 1 . 1 . 2 . . . . . . . . . . 1 . 1 . . 2 . . . 1 2 . 4 1 Hackware 6 | . . . . . . . . 2 . . . . . . . . . . . . . . . 1 . 1 . . . . 2 . . . . . . Protection 85 | . . . 10 . 5 1 9 7 . 2 . 9 . 1 4 2 1 6 1 . . 3 . . . . 2 2 3 1 1 . 1 1 1 7 5 Artifact . | . . . . . . . . . . . . . . . . . . . . . . . . . . . . . . . . . . . . . . Weapon 196 | . 3 4 10 . 11 7 9 14 2 2 6 13 . . . . . 9 . . 4 . . . . 1 5 2 3 3 2 1 13 14 6 23 29 Energy Gun 19 | . 3 3 1 . . . 1 . 2 . 1 5 . . . . . . . . . . . . . . . . . . 1 . . 1 . . 1 Energy Cannon 35 | . . . 2 . . . . . . 2 1 . . . . . . . . . 1 . . . . . . . 1 2 1 . . 2 1 8 14 Ballistic Gun 23 | . . 1 1 . 6 5 4 . . . . 1 . . . . . 4 . . . . . . . . . . . . . . 1 . . . . Ballistic Cannon 9 | . . . 4 . . . 1 2 . . . . . . . . . . . . 1 . . . . . . 1 . . . . . . . . . Launcher 28 | . . . 2 . 2 1 3 8 . . . 2 . . . . . 2 . . 1 . . . . . 2 1 . 1 . . 1 . 1 1 . Special Weapon 22 | . . . . . . 1 . 4 . . 2 3 . . . . . 3 . . . . . . . . 3 . 1 . . . 2 . 1 2 . Impact Weapon 12 | . . . . . . . . . . . 2 . . . . . . . . . . . . . . . . . . . . . 1 3 . 1 5 Slashing Weapon 37 | . . . . . 3 . . . . . . . . . . . . . . . . . . . . . . . . . . . 6 6 3 10 9 Piercing Weapon 11 | . . . . . . . . . . . . 2 . . . . . . . . 1 . . . . 1 . . 1 . . 1 2 2 . 1 . Special Melee Weapon . | . . . . . . . . . . . . . . . . . . . . . . . . . . . . . . . . . . . . . . Unidentified Prototypes 69 | . . . 3 . 6 1 2 . 1 . 1 6 . 1 . 2 . . 1 . . 4 . . . . 5 1 1 3 5 . 10 5 . 9 2 Corrupted Parts 8 | . . 4 . . . . . . 1 . . . . . . . . 3 . . . . . . . . . . . . . . . . . . . System Corruption 57 | . . 17 . . . . . . 10 . . . . . . . . 30 . . . . . . . . . . . . . . . . . . . Parts Lost 68 | . 2 6 2 . 5 . 6 2 2 . . 10 . . 1 . . 10 . . 4 . . . . . 4 1 . . . 2 5 3 1 . 2 Power 13 | . . 1 1 . 1 . 1 . . . . 1 . . 1 . . 4 . . . . . . . . 1 . . . . . 1 . 1 . . Propulsion 12 | . 1 2 . . 3 . . . 1 . . 1 . . . . . . . . . . . . . . . . . . . . 3 1 . . . Utility 33 | . 1 . 1 . 1 . 3 2 1 . . 6 . . . . . 6 . . 2 . . . . . 3 . . . . 2 1 2 . . 2 Weapon 10 | . . 3 . . . . 2 . . . . 2 . . . . . . . . 2 . . . . . . 1 . . . . . . . . . Highest Loss Streak 5 | . 2 2 1 . 5 . 3 2 1 . . 4 . . 1 . . 5 . . 3 . . . . . 3 1 . . . 1 2 2 1 . 1 To Critical Strikes 3 | . . . . . 3 . . . . . . . . . . . . . . . . . . . . . . . . . . . . . . . . Average Slot Usage (%) 78 | . 86 88 95 100 89 94 76 75 62 69 65 82 93 98 99 89 86 82 73 75 67 56 64 67 67 67 69 82 81 72 86 88 83 80 81 83 90 Engine 2 | . 14 6 10 11 11 11 6 6 . . . . . . . . . . 5 5 5 . . . . . . . . . . . . . . . . Core 1 | . . 7 . . . . 2 . 7 7 7 4 . . 4 6 6 5 . . . . . . . . . . . . . . . . . . . Reactor 3 | . . . . . . . . . . . . 2 7 12 6 6 6 4 5 5 5 4 5 5 5 5 4 5 4 5 9 8 6 4 6 7 11 Treads 8 | . 12 23 25 33 27 . 15 13 6 7 6 . . . . 9 13 13 9 11 11 11 11 10 10 10 8 . 4 14 3 . . . . . . Leg 6 | . 14 4 4 . 5 27 3 . 6 7 7 21 30 26 26 6 . . . . . . . . . . 2 21 20 . . . . . . . . Wheel 1 | . . . . . . 2 3 8 7 7 7 3 . . . . . . . . . . . . . . . . . . . . . . . . . Hover 5 | . . . . . . . . . . . . . . . . . . . . . . . . . . . . . . . 20 32 32 32 32 33 34 Device 14 | . 2 5 6 . 1 7 8 9 7 7 7 13 7 6 6 6 6 11 21 22 14 17 23 24 20 20 23 25 19 18 23 19 23 27 25 19 18 Storage 9 | . 14 14 11 11 11 11 9 7 7 7 7 10 15 13 13 13 13 12 5 5 5 9 11 10 10 10 10 10 9 9 8 4 4 4 3 6 3 Processor 2 | . . . . . . 1 . 2 1 . . 3 2 13 12 6 6 6 5 5 5 . . 1 5 5 3 . 2 4 3 . . 3 3 1 7 Protection 8 | . . . 14 22 20 13 13 11 7 6 7 8 13 11 13 19 19 12 4 5 5 . . 5 5 5 5 9 9 9 5 8 7 3 3 9 10 Energy Gun 1 | . 27 25 4 . . . 2 . 3 . 3 2 . . . . . . . . . . . . . . . . . . . . . . . . . Energy Cannon 5 | . . . 10 11 . . . . . 14 2 6 15 13 13 13 13 9 5 5 3 8 11 10 10 9 8 8 8 8 8 7 . . . . 1 Ballistic Gun 1 | . . . . . 7 17 5 . . . . . . . . . . 2 5 5 . . . . . . . . . . . . . . . . . Naked Turns . | . . . . . . . . . . . . . . . . . . . . . . . . . . . . . . . . . . . . . . Heaviest Build 201 | 11 31 32 72 72 113 119 138 134 125 127 123 142 142 152 155 158 158 158 146 146 146 158 158 164 165 165 165 174 194 201 197 142 137 110 142 176 148 Greatest Support 245 | 20 40 40 60 60 80 80 60 80 56 28 28 114 114 114 114 160 160 160 160 160 160 160 160 160 160 160 180 140 245 225 225 156 146 135 157 175 150 Greatest Overweight (x) 4 | . 1 1 3 1 1 4 4 4 4 4 4 4 1 1 1 1 . . . . . . . 1 1 1 2 1 1 . 1 1 1 . 1 1 . Average Overweight (x) . | . . . . 1 . 1 2 3 3 3 3 2 1 1 1 . . . . . . . . . 1 . . 1 . . . . . . . . . Largest Inventory Capacity 25 | . 15 15 20 20 25 25 25 25 25 25 25 25 25 25 25 25 25 25 25 25 25 25 25 25 25 25 25 25 25 25 25 20 20 15 20 20 15 Average Capacity 23 | . 14 15 18 20 23 25 25 25 25 25 25 23 25 25 25 25 25 25 25 25 25 25 25 25 25 25 25 25 25 25 21 20 19 15 18 19 15 Most Carried 25 | . 13 15 20 20 25 25 25 25 25 25 25 25 25 25 25 25 25 25 25 25 25 25 25 25 25 25 25 25 25 25 25 18 20 15 20 20 15 Average Carried 22 | . 9 14 17 20 22 24 23 24 23 24 24 21 24 24 24 25 24 23 24 25 24 24 25 24 24 24 24 24 24 24 15 17 19 14 17 19 14 Final Capacity 25 | 8 15 15 20 20 25 25 25 25 25 25 25 25 25 25 25 25 25 25 25 25 25 25 25 25 25 25 25 25 25 25 20 20 15 15 20 15 15 Final Carried 25 | 6 13 15 20 20 24 25 25 22 25 25 25 25 25 25 25 25 25 25 25 25 25 25 25 24 25 25 25 25 25 25 19 18 15 14 20 15 15 Class Distribution -------------------- 26% | Mutant 20% | Scavenger-Skirmisher 17% | Scavenger-Mutant 8% | Alien-Sprinter 6% | Scavenger-Golem 4% | Golem 3% | Commander-Mutant 3% | Skirmisher Dominant Class ---------------- Mutant | -10/Materials Mutant | -10/Mines Mutant | -9/Materials Mutant | -9/Mines Mutant | -9/Exiles Scavenger-Mutant | -8/Mines Scavenger-Mutant | -8/Materials Scavenger-Mutant | -7/Factory Mutant | -7/Lower Caves Skirmisher | -7/Lower Caves Mutant | -7/Zion Mutant | -7/Deep Caves Mutant | -6/Proximity Caves Mutant | -6/Factory Commander-Mutant | -6/Extension Scavenger-Mutant | -6/Cetus Scavenger-Mutant | -6/Archives Scavenger-Mutant | -6/Hub_04(d) Scavenger-Skirmisher | -5/Factory Scavenger-Skirmisher | -5/Upper Caves Scavenger-Skirmisher | -5/Upper Caves Mutant | -5/Zhirov Scavenger-Skirmisher | -4/Proximity Caves Scavenger-Golem | -4/Factory Scavenger-Skirmisher | -4/Upper Caves Scavenger-Skirmisher | -4/Upper Caves Scavenger-Skirmisher | -4/Warlord Scavenger-Golem | -3/Proximity Caves Scavenger-Mutant | -3/Research Mutant | -3/Armory Mutant | -3/Lab Hacker-Mutant | -2/Research Scavenger-Sprinter | -2/Quarantine Alien-Mutant | -2/Section 7 Alien-Sprinter | -1/Access Alien-Sprinter | -1/Command Generator-Sprinter | -1/Access_0 Resources | -11 -10 -10 -9 -9 -9 -8 -8 -7 -7 -7 -7 -7 -6 -6 -6 -6 -6 -6 -5 -5 -5 -5 -4 -4 -4 -4 -4 -3 -3 -3 -3 -2 -2 -2 -1 -1 -1 ----------- Run | Scr Mat Min Mat Min Exi Min Mat Fac Low Low Zio Dee Pro Fac Ext Cet Arc Hub Fac Upp Upp Zhi Pro Fac Upp Upp War Pro Res Arm Lab Res Qua Sec Acc Com Ac0 Matter Collected 8837 | 200 80 105 396 49 844 211 791 932 262 173 48 576 30 20 30 60 20 529 18 120 154 80 . . 60 50 558 384 180 80 . 238 495 172 266 386 240 Remotely . | . . . . . . . . . . . . . . . . . . . . . . . . . . . . . . . . . . . . . . Salvage Created 27394 | . 458 206 735 22 527 254 1001 1509 425 321 . 2613 . 113 918 131 162 3017 18 275 380 427 159 135 . 64 641 607 893 558 . 746 930 803 599 5007 2740 Parts 1235 | . 15 10 54 3 73 20 63 102 16 13 . 34 . 5 47 5 2 179 3 10 16 5 3 8 . 2 18 19 57 32 . 49 18 22 33 156 143 Haulers Intercepted 11 | . . . 3 . . . 4 2 . . . . . . . . . . . . . . . . . . . . 1 . . . 1 . . . . Recyclers Shooed 7 | . 2 . 1 . . . 3 . . . . . . . . . . . . . . . . 1 . . . . . . . . . . . . . Parts Field Recycled . | . . . . . . . . . . . . . . . . . . . . . . . . . . . . . . . . . . . . . . Retrieved Matter . | . . . . . . . . . . . . . . . . . . . . . . . . . . . . . . . . . . . . . . Parts Self-Destructed 63 | . . . . . . . . . 3 11 . . . . . . . . . 4 16 1 6 . 2 2 . 18 . . . . . . . . . Prevented 12 | . . . . . . . . . 11 . . . . . . . . . . . 1 . . . . . . . . . . . . . . . . Kills | -11 -10 -10 -9 -9 -9 -8 -8 -7 -7 -7 -7 -7 -6 -6 -6 -6 -6 -6 -5 -5 -5 -5 -4 -4 -4 -4 -4 -3 -3 -3 -3 -2 -2 -2 -1 -1 -1 ------- Run | Scr Mat Min Mat Min Exi Min Mat Fac Low Low Zio Dee Pro Fac Ext Cet Arc Hub Fac Upp Upp Zhi Pro Fac Upp Upp War Pro Res Arm Lab Res Qua Sec Acc Com Ac0 Combat Hostiles Destroyed 374 | . 9 4 14 3 4 4 19 33 11 5 . 41 . 2 12 1 2 48 . 2 7 . 2 1 . 1 23 13 12 9 . 7 6 13 11 25 30 Melee 22 | . . . . . 1 . . . . . . 2 . . . . . 1 . . . . . . . . . . . . . 3 1 8 1 5 . Guns 41 | . 9 4 . . 1 2 13 . . . . 5 . . . . . 4 . 2 1 . . . . . . . . . . . . . . . . Cannons 167 | . . . 9 3 . . . 16 . 5 . 3 . 2 12 1 2 27 . . 3 . 2 1 . 1 3 10 10 9 . 4 2 . 3 12 27 AOE 111 | . . . 5 . 2 2 6 15 9 . . 24 . . . . . 16 . . 2 . . . . . 20 3 . . . . . . 4 3 . Classes Destroyed 30 | . 3 . 5 . 3 1 3 2 1 2 . 4 . . 1 . . 2 . 1 . . . . . . 1 . . . . . 1 . . . . Worker 29 | . 1 1 1 . . 1 3 3 . . . . . . . . . 14 1 . . . . . . . . . . . . . 1 . 2 1 . Builder 27 | . . . 3 . . 2 3 3 . . . . . . 2 . . 13 . . . . . . . . . . . . . . . . 1 . . Tunneler 2 | . . . . . . . 1 . . . . . . . . . . 1 . . . . . . . . . . . . . . . . . . . Hauler 11 | . . . 3 . . . 4 2 . . . . . . . . . . . . . . . . . . . . 1 . . . 1 . . . . Recycler 18 | . 1 . 1 . . . 2 2 . . . . . . . . . 2 . . . . . . . . . . . . . 1 . . 1 8 . Mechanic 1 | . . . . . . . . 1 . . . . . . . . . . . . . . . . . . . . . . . . . . . . . Operator 6 | . . . . . . . 1 1 . . . . . . . . . 3 . . . . . . . . . . . . . . . . . 1 . Turret 1 | . . . . . 1 . . . . . . . . . . . . . . . . . . . . . . . . . . . . . . . . Watcher 16 | . . . 1 . . . . 1 . . . . . . . . . 3 . . . . . 2 . . . . 1 2 . 2 . . 1 3 . Swarmer 75 | . . . 5 3 . . 3 8 4 . . . . . . . . 7 . . 2 . . . . . 6 5 4 4 . . . 7 9 8 . Saboteur 1 | . . . . . . . . . . . . . . . . . . 1 . . . . . . . . . . . . . . . . . . . Grunt 103 | . 9 4 5 . . 2 11 17 6 . . . . . 2 . . 21 . . 2 . 2 . . . 10 6 . . . . 2 1 . 3 . Brawler 2 | . . . . . . 1 . . . . . . . . 1 . . . . . . . . . . . . . . . . . . . . . . Duelist 3 | . . . . . . . . . 1 . . . . . . . . . . . 1 . . . . . . . . . . . . . . 1 . Protector 2 | . . . . . . . . . . . . . . . . . . 1 . . . . . . . . 1 . . . . . . . . . . Sentry 33 | . . . 4 . . . 4 3 . . . . . 1 4 . 2 7 . . 1 . . 1 . 1 . 1 1 . . 1 . 1 1 . . Specialist 4 | . . . . . . . . . . 3 . . . . . . . . . . . . . . . . . . . 1 . . . . . . . Hunter 14 | . . . . . . . . . . 2 . . . . 3 1 . . . 1 . . . . . . 3 . 2 . . . . . . 2 . Programmer 32 | . . . . . . . . 5 . . . . . 1 . . . 3 . . . . . . . . . . 3 4 . 6 3 1 1 5 . Heavy 2 | . . . . . . . 1 . . . . . . . . . . 1 . . . . . . . . . . . . . . . . . . . Behemoth 8 | . . . . . . . . . . . . . . . 2 . . 1 . . 1 . . . . . . 1 2 . . . . 1 . . . S7 Guard 2 | . . . . . . . . . . . . . . . . . . . . . . . . . . . . . . . . . . 2 . . . M Guard 2 | . . . . . . . . . . . . . . . . . . . . . . . . . . . . . . . . . . . . 2 . Enhanced Grunt 17 | . . . . . . . . . . . . . . . . . . . . . . . . . . . . . . . . . . . . . 17 Enhanced Sentry 2 | . . . . . . . . . . . . . . . . . . . . . . . . . . . . . . . . . . . . . 2 Enhanced Hunter 5 | . . . . . . . . . . . . . . . . . . . . . . . . . . . . . . . . . . . . . 5 Lightning 6 | . . . . . . . . . . . . . . . . . . 6 . . . . . . . . . . . . . . . . . . . Combat Programmer 2 | . . . . . . . . . . . . . . . . . . . . . . . . . . . . . . . . . . . . 2 . Executioner 3 | . . . . . . . . . . . . . . . . . . . . . . . . . . . 3 . . . . . . . . . . Fortress 1 | . . . . . . . . . . . . . . . . . . . . . . . . . . . . . . . . . 1 . . . . Zionite 7 | . . . . . 7 . . . . . . . . . . . . . . . . . . . . . . . . . . . . . . . . Z-Light 5 | . . . . . . . . . . . . 5 . . . . . . . . . . . . . . . . . . . . . . . . . Assembler 2 | . . . . . . . . . . . . 2 . . . . . . . . . . . . . . . . . . . . . . . . . Assembled 13 | . . . . . 3 . . . . . . 10 . . . . . . . . . . . . . . . . . . . . . . . . . Golem 26 | . . . . . . . . . . . . 26 . . . . . . . . . . . . . . . . . . . . . . . . . Thug 1 | . . . . . . . . . . . . . . . . . . . . 1 . . . . . . . . . . . . . . . . . Savage 1 | . . . . . . . . . . . . . . . 1 . . . . . . . . . . . . . . . . . . . . . . Guerrilla 1 | . . . . . . . . . . . . . . . . 1 . . . . . . . . . . . . . . . . . . . . . Fireman 1 | . . . . . . . . . . . . 1 . . . . . . . . . . . . . . . . . . . . . . . . . Mutant 1 | . . . . . . . . . . . . . . . . . . . . 1 . . . . . . . . . . . . . . . . . Best Kill Streak 19 | . 2 2 5 3 3 3 18 12 4 2 . 16 . 1 2 1 1 19 1 1 3 . 2 2 . 1 7 8 4 4 . 4 2 4 5 8 6 Combat Bots Only 16 | . 2 2 5 3 3 3 8 9 4 2 . 16 . 1 2 1 1 12 . 1 3 . 2 1 . 1 7 8 4 4 . 4 2 4 5 7 6 Max Kills in Single Turn 8 | . 1 1 3 1 2 1 4 4 3 1 . 4 . 1 1 2 1 8 1 1 1 . 1 1 . 1 4 3 1 1 . 1 1 1 5 3 2 Gunslinging 1 | . . . . . . . 1 . . . . . . . . . . . . . . . . . . . . . . . . . . . . . . Exploded 4 | . . . 3 . 2 1 2 3 3 . . 4 . . . . . 2 . . 1 . . . . . 4 3 . . . . . . 4 3 . Melee 1 | . . . . . 1 . . . . . . 1 . . . . . 1 . . . . . . . . . . . . . 1 1 1 1 1 . Uniques/NPCs Destroyed 15 | . . . . . 4 1 . . . . . 1 . . . 1 . . . . . . . . . . . . . . . . . . . 2 6 8R-AWN (-9/Exiles) EX-HEX (-9/Exiles) EX-DEC (-9/Exiles) EX-BIN (-9/Exiles) AD-0RF (-8/Mines) Z-Imprinter (-7/Deep Caves) A7 (-6/Cetus) MAIN.C Shell (-1/Command) MAIN.C (-1/Command) A8 (-1/Access_0) A6 (-1/Access_0) A5 (-1/Access_0) A4 (-1/Access_0) A2 (-1/Access_0) A3 (-1/Access_0) Combat | -11 -10 -10 -9 -9 -9 -8 -8 -7 -7 -7 -7 -7 -6 -6 -6 -6 -6 -6 -5 -5 -5 -5 -4 -4 -4 -4 -4 -3 -3 -3 -3 -2 -2 -2 -1 -1 -1 -------- Run | Scr Mat Min Mat Min Exi Min Mat Fac Low Low Zio Dee Pro Fac Ext Cet Arc Hub Fac Upp Upp Zhi Pro Fac Upp Upp War Pro Res Arm Lab Res Qua Sec Acc Com Ac0 Damage Taken 30712 | . 560 505 431 99 882 913 2132 1607 502 459 . 2656 . 44 458 15 215 2438 . 71 1258 . 261 . 30 205 2298 1192 1136 226 . 1053 1388 1988 1038 1733 2919 Core 2831 | . 104 61 76 19 94 141 279 59 47 52 . 259 . . 80 . . 267 . . 126 . . . . . 258 70 95 19 . 46 21 103 94 119 342 Absorbed by Shields 6389 | . . . . . . . . . . . . 204 . 22 174 5 81 381 . . . . . . . . . . 71 58 . 273 275 636 376 1033 2800 Reduced by Siege Mode 56 | . . . . . . . . . . . . . . . . . 26 . . . 30 . . . . . . . . . . . . . . . . Redirected to Shielding 330 | . . . . . . . 42 . . . . 163 . . . . . 111 . . . . . . . . . . . . . . . . . 14 . Regen/Repaired (Parts) 7607 | . . . . . . . 56 177 . . . . . . . . . . 1201 . . . . . . . . . 122 . . 21 808 2242 701 2058 221 Core Remaining (%) 59 | 100 . 34 . . . 17 49 . . . . . 40 . . . . 59 . . . . 87 . . . . 71 . . 85 . . 69 . . 44 Volleys Fired 1125 | . 45 26 40 6 55 25 64 91 13 20 1 92 . 7 45 7 11 113 5 6 13 23 12 9 1 5 33 22 45 44 9 30 15 15 10 57 110 Largest 2 | . 2 2 2 2 2 2 2 2 1 2 1 2 . 2 2 2 2 2 2 2 2 1 2 2 2 2 2 2 2 1 1 2 1 1 1 1 1 Hottest 220 | . 90 90 108 107 46 220 86 220 39 145 65 110 . 50 50 50 50 55 55 55 55 25 50 50 50 50 220 220 220 94 25 119 220 105 220 220 180 Shots Fired 1605 | . 88 55 76 11 91 44 103 96 15 39 1 119 . 14 78 11 22 178 7 12 22 23 24 16 2 10 48 37 72 44 9 30 15 15 10 58 110 Gun 492 | . 88 55 18 . 80 38 95 . 1 . . 72 . . . . . 25 2 6 9 . . . . . . . . . . . . 3 . . . Cannon 931 | . . . 55 11 . . . 57 . 39 1 14 . 14 78 11 22 129 5 6 9 23 24 16 2 10 33 35 70 44 9 30 10 12 2 50 110 Launcher 106 | . . . 3 . 11 2 8 32 14 . . 13 . . . . . 7 . . 4 . . . . . 9 1 . . . . . . 1 1 . Special 76 | . . . . . . 4 . 7 . . . 20 . . . . . 17 . . . . . . . . 6 1 2 . . . 5 . 7 7 . Kinetic 308 | . . . 19 6 80 38 53 57 . . . 6 . . . . . 25 2 6 9 . . . . . . 7 . . . . . . . . . Thermal 908 | . 88 55 54 5 . 4 42 7 1 39 1 14 . 14 78 11 22 129 5 6 9 23 24 16 2 10 39 29 72 37 9 19 15 15 7 7 . Explosive 104 | . . . 3 . 11 2 8 7 6 . . 27 . . . . . 24 . . 4 . . . . . 9 1 . . . . . . 1 1 . Electromagnetic 123 | . . . . . . . . 25 8 . . 72 . . . . . . . . . . . . . . . . . 7 . 11 . . . . . Slashing 162 | . . . . . . . . . . . . . . . . . . . . . . . . . . . . . . . . . . . 2 50 110 Robot Hit Streak 54 | . 9 10 15 4 15 17 7 9 10 9 . 17 . 5 16 12 13 17 2 11 4 24 26 5 4 5 7 13 14 8 . 7 16 . 17 54 26 Robot Miss Streak 5 | . 2 3 3 4 2 4 5 4 1 2 . 5 . 3 3 . 2 3 1 . 2 . 1 2 . 1 3 3 2 3 . 2 1 . 3 4 5 Penetration Max 1 | . . . . . 1 . . . . . . . . . . . . 1 . . . . . . . . . . . . . . . . . 1 1 Secondary Targets 5 | . 2 1 . . . . 2 . . . . . . . . . . . . . . . . . . . . . . . . . . . . . . Max Gunslinging Chain 1 | . 1 1 . . . . 1 . . . . . . . . . . . . . . . . . . . . . . . . . . . . . . Capacitor 247 | . . . . . . . . . . . . . . . . . . . . . . . . . . . . . 5 44 . 12 9 15 2 50 110 Shots Hit Robots 1254 | . 65 36 54 5 83 29 70 58 8 29 . 97 . 8 50 6 15 108 2 9 14 23 13 7 2 3 24 26 39 24 . 24 21 24 16 130 132 Core Hits 1333 | . 23 12 26 2 34 13 58 57 11 8 . 257 . 3 22 5 6 132 1 4 13 5 4 5 . 1 56 22 21 10 . 12 13 10 22 130 335 Critical Kills 11 | . . . . . . . 5 . . . . . . . . . . 3 . 3 . . . . . . . . . . . . . . . . . Critical Parts Destroyed 11 | . . . . . 2 1 1 . . . . 1 . . . . . 3 . 1 2 . . . . . . . . . . . . . . . . Critical Strikes 80 | . 9 1 . 1 5 4 11 2 . . . 4 . . . . . 8 . 4 2 . . . . . 1 . . . . 3 1 1 . 3 20 Burn 15 | . 9 1 . . . . 5 . . . . . . . . . . . . . . . . . . . . . . . . . . . . . . Destroy 26 | . . . . . 3 4 6 . . . . 1 . . . . . 6 . 4 2 . . . . . . . . . . . . . . . . Blast 3 | . . . . 1 . . . 2 . . . . . . . . . . . . . . . . . . . . . . . . . . . . . Sever 33 | . . . . . 2 . . . . . . 3 . . . . . 2 . . . . . . . . 1 . . . . . 1 1 . 3 20 Impale 3 | . . . . . . . . . . . . . . . . . . . . . . . . . . . . . . . . 3 . . . . . Melee Attacks 307 | . . . . . 22 . . . . . 10 4 . . . . . . . . 5 . . . . . . . 4 . . 10 26 48 26 118 34 Kinetic 47 | . . . . . . . . . . . . . . . . . . . . . . . . . . . . . . . . . 3 10 . 10 24 Impact 10 | . . . . . . . . . . . 10 . . . . . . . . . . . . . . . . . . . . . . . . . . Slashing 225 | . . . . . 22 . . . . . . . . . . . . . . . . . . . . . . . . . . . 23 36 26 108 10 Piercing 25 | . . . . . . . . . . . . 4 . . . . . . . . 5 . . . . . . . 4 . . 10 . 2 . . . Sneak Attacks 21 | . . . . . 6 . . . . . . . . . . . . . . . . . . . . . . . . . . . 2 1 4 8 . Combat Hostiles 1 | . . . . . . . . . . . . . . . . . . . . . . . . . . . . . . . . . . 1 . . . Follow-up Attacks . | . . . . . . . . . . . . . . . . . . . . . . . . . . . . . . . . . . . . . . Damage Inflicted 88522 | . 798 395 1357 129 3082 685 3226 4023 1026 756 . 11006 . 394 2550 311 741 8944 77 308 837 1083 600 371 110 149 3922 1899 1852 1381 . 1269 1227 1470 1996 16125 14423 Guns 5325 | . 794 395 139 . 977 399 1264 . . . . 961 . . . . . 219 23 83 71 . . . . . . . . . . . . . . . . Cannons 39756 | . . . 871 129 . . . 1987 . 756 . 463 . 394 2536 311 741 3797 54 225 258 1083 600 371 110 149 487 1273 1746 1381 . 855 386 . 308 5053 13432 Explosions 24304 | . . . 333 . 489 170 1962 1709 1026 . . 9133 . . . . . 4380 . . 476 . . . . . 3295 585 . . . . . . 377 369 . Melee 16640 | . . . . . 1616 . . . . . . 118 . . . . . . . . 32 . . . . . . . . . . 314 624 1470 1049 10426 991 Ramming 148 | . 4 . 14 . . . . . . . . . . . 14 . . . . . . . . . . . 16 . . . . 100 . . . . . Kinetic 7184 | . . . 213 66 977 399 822 1987 . . . 84 . . . . . 219 23 83 71 . . . . . . 436 . . . . 93 309 . 411 991 Thermal 21576 | . 794 395 797 63 . 116 1019 327 . 756 . 682 . 394 2536 311 741 3797 54 225 258 1083 600 371 110 149 611 878 1852 1095 . 420 603 . 262 277 . Explosive 20086 | . . . 333 . 489 170 1385 880 430 . . 8141 . . . . . 3156 . . 476 . . . . . 3295 585 . . . . . . 377 369 . Electromagnetic 5020 | . . . . . . . . 829 596 . . 1650 . . . . . 1224 . . . . . . . . . . . 286 . 435 . . . . . Impact . | . . . . . . . . . . . . . . . . . . . . . . . . . . . . . . . . . . . . . . Slashing 34044 | . . . . . 1616 . . . . . . 331 . . . . . 548 . . . . . . . . . . . . . . 531 1161 1357 15068 13432 Piercing 464 | . . . . . . . . . . . . 118 . . . . . . . . 32 . . . . . . . . . . 314 . . . . . Highest Corruption 46 | . 2 19 2 2 2 . . 2 13 14 14 . . . . . . 46 . . . . . . . . 5 5 2 . 7 15 18 3 . 2 . Average Corruption 6 | . 2 3 2 2 1 . . 1 12 13 14 . . . . . . 13 . . . . . . . . 4 5 1 . 7 7 17 1 . 1 . Corruption Purged 4 | . . . . . 2 . . . . . . . . . . . . . . . . . . . . . . . . . . . . . . 2 . Corruption Blocked 10 | . . . . . . . . . . . . . . . . . . . . . . . . . . . 10 . . . . . . . . . . Effects 302 | . 1 21 8 10 28 . . 5 50 43 6 . . . . . . 22 . . . . . . . . 13 42 . . 1 7 34 10 . 1 . Message Errors 75 | . . 6 1 . 8 . . 3 17 9 2 . . . . . . 4 . . . . . . . . 2 11 . . . 1 9 2 . . . Matter Fused 67 | . . 2 1 3 8 . . 2 7 11 2 . . . . . . 6 . . . . . . . . . 11 . . 1 4 6 3 . . . Heat Flow Errors 33 | . . 4 1 . 2 . . . 9 5 1 . . . . . . 2 . . . . . . . . 4 2 . . . . 2 1 . . . Energy Discharges 38 | . . 3 . 2 6 . . . 6 7 1 . . . . . . 4 . . . . . . . . 2 1 . . . . 4 2 . . . Parts Rejected 3 | . 1 . 1 . . . . . . . . . . . . . . . . . . . . . . . . . . . . . 1 . . . . Data Loss (minor) 47 | . . 2 1 5 4 . . . 7 10 . . . . . . . 2 . . . . . . . . 3 6 . . . 1 5 1 . . . Data Loss (major) 9 | . . . 1 . . . . . . 1 . . . . . . . 1 . . . . . . . . 1 5 . . . . . . . . . Misfires 10 | . . 3 . . . . . . 2 . . . . . . . . 1 . . . . . . . . 1 2 . . . . . . . 1 . Alerts 10 | . . 1 1 . . . . . 2 . . . . . . . . . . . . . . . . . . 4 . . . . 1 1 . . . Misdirections 8 | . . . . . . . . . . . . . . . . . . 2 . . . . . . . . . . . . . . 6 . . . . Weapon Failures 2 | . . . 1 . . . . . . . . . . . . . . . . . . . . . . . . . . . . 1 . . . . . Overload Shots . | . . . . . . . . . . . . . . . . . . . . . . . . . . . . . . . . . . . . . . Overflow Damage 5047 | . . . 21 . 182 . 207 267 24 . . 259 . 46 98 . 3 222 . 14 35 108 . . . 15 79 41 45 226 . 112 47 43 493 2372 88 Projectiles 1228 | . . . 11 . . . . 205 . . . 57 . 46 98 . 3 101 . 14 35 108 . . . 15 8 41 45 226 . 97 46 . . . 72 Explosions 764 | . . . 10 . . . 207 62 24 . . 202 . . . . . 121 . . . . . . . . 71 . . . . . . . . 67 . Melee 3055 | . . . . . 182 . . . . . . . . . . . . . . . . . . . . . . . . . . 15 1 43 493 2305 16 Knockbacks 12 | . . . 3 . . . . 9 . . . . . . . . . . . . . . . . . . . . . . . . . . . . . Impact . | . . . . . . . . . . . . . . . . . . . . . . . . . . . . . . . . . . . . . . Kinetic 12 | . . . 3 . . . . 9 . . . . . . . . . . . . . . . . . . . . . . . . . . . . . Secondary . | . . . . . . . . . . . . . . . . . . . . . . . . . . . . . . . . . . . . . . Self-Inflicted Damage 837 | . . . 24 . 19 35 17 59 167 . . 82 . . . . . 287 . . . . . . . . 47 . . . . 100 . . . . . Shots 25 | . . . 1 . 1 2 2 2 6 . . 6 . . . . . 4 . . . . . . . . 1 . . . . . . . . . . Rammed 5 | . 1 . 3 . . . . 1 . . . . . . . . . . . . . . . . . . . . . . . . . . . . . Targets Rammed 7 | . 1 . 3 . . . . 1 . . . . . . 1 . . . . . . . . . . . 1 . . . . . . . . . . Kicked 2 | . . . . . . . . . . . . . . . 1 . . . . . . . . . . . 1 . . . . . . . . . . Crushed . | . . . . . . . . . . . . . . . . . . . . . . . . . . . . . . . . . . . . . . Highest Temperature 460 | . 300 460 257 308 215 288 27 225 261 402 103 . . 153 280 164 208 257 . . 105 . . . . . 244 189 90 161 185 328 129 170 198 198 178 Average Temperature 133 | . 101 154 50 159 64 147 14 54 110 124 44 . . 75 98 64 24 65 . . 55 . . . . . 118 112 49 79 42 148 66 92 184 186 131 Received Heat Transfer 5473 | . 306 297 159 . . 1316 837 543 99 30 . 402 . 4 121 . 30 368 . . 114 . . . 15 18 108 178 18 4 . 6 50 135 72 96 147 Effects 11 | . 2 2 . 1 1 1 . . . 1 . . . . 1 . . . . . . . . . . . . . . . . 2 . . . . . Shutdowns 2 | . . 1 . . . . . . . 1 . . . . . . . . . . . . . . . . . . . . . . . . . . . Energy Bleed 4 | . 1 . . . 1 1 . . . . . . . . 1 . . . . . . . . . . . . . . . . . . . . . . Interference 4 | . 1 . . 1 . . . . . . . . . . . . . . . . . . . . . . . . . . . 2 . . . . . Damage (minor) 1 | . . 1 . . . . . . . . . . . . . . . . . . . . . . . . . . . . . . . . . . . Siege Activations 3 | . . . . . . . . . . . . . . . . . 1 1 . . 1 . . . . . . . . . . . . . . . . Total Turns 30 | . . . . . . . . . . . . . . . . . 19 1 . . 10 . . . . . . . . . . . . . . . . Longest Duration 19 | . . . . . . . . . . . . . . . . . 19 1 . . 10 . . . . . . . . . . . . . . . . Robots Corrupted 12 | . . . . . . . . 2 2 . . 7 . . . . . . . . . . . . . . . . . . . 1 . . . . . Combat Hostiles 10 | . . . . . . . . 1 2 . . 7 . . . . . . . . . . . . . . . . . . . . . . . . . Parts Fried 29 | . . . . . . . . 6 3 . . . . . . 2 . 7 . . . . . . . . . . . 5 . 6 . . . . . Impact Corruptions . | . . . . . . . . . . . . . . . . . . . . . . . . . . . . . . . . . . . . . . Robots Melted 8 | . . . . . . . . 1 . . . . . . . . . . . . . . . . . . . . . . . . 2 . 3 2 . Combat Hostiles 7 | . . . . . . . . 1 . . . . . . . . . . . . . . . . . . . . . . . . 2 . 3 1 . Parts Melted 67 | . 6 2 5 . . 3 6 12 . 6 . . . . 2 . . 1 . . 1 . . 1 . . 2 1 2 2 . . 6 . 5 4 . Heat Transferred 25574 | . 2799 1022 1509 111 . 720 1732 1680 . 1281 . 375 . 200 1400 123 425 2085 25 125 125 556 325 200 50 75 843 690 1540 518 . 200 1560 . 1600 1680 . Parts Sabotaged 6 | . . . . . . . . . . . . . . . . . . 1 . . . . . . . . 5 . . . . . . . . . . Parts Stolen . | . . . . . . . . . . . . . . . . . . . . . . . . . . . . . . . . . . . . . . Parts Stripped . | . . . . . . . . . . . . . . . . . . . . . . . . . . . . . . . . . . . . . . Power Chain Reactions 1 | . . . . . . . . . . . . 1 . . . . . . . . . . . . . . . . . . . . . . . . . Missiles Intercepted . | . . . . . . . . . . . . . . . . . . . . . . . . . . . . . . . . . . . . . . Alert | -11 -10 -10 -9 -9 -9 -8 -8 -7 -7 -7 -7 -7 -6 -6 -6 -6 -6 -6 -5 -5 -5 -5 -4 -4 -4 -4 -4 -3 -3 -3 -3 -2 -2 -2 -1 -1 -1 ------- Run | Scr Mat Min Mat Min Exi Min Mat Fac Low Low Zio Dee Pro Fac Ext Cet Arc Hub Fac Upp Upp Zhi Pro Fac Upp Upp War Pro Res Arm Lab Res Qua Sec Acc Com Ac0 Peak Influence 2080 | . 215 112 383 159 . 120 696 728 . . . . . 93 253 323 212 1749 900 . . . . 233 . . . . 328 506 . 349 450 1118 1666 2080 . Initial 980 | . . 44 . 74 . . 46 186 . . . . . . . 20 129 74 856 . . . . . . . . . . 136 . . 195 40 591 980 . Average 362 | . 103 51 232 108 . 99 456 274 . . . . . 18 68 243 202 668 813 . . . . 58 . . . . 183 346 . 174 183 519 1118 1686 . Maximum Alert Level 5 | . 1 . 1 . . . 2 3 . . . . . . 1 1 1 5 3 . . . . 1 . . . . 1 2 . 1 2 4 5 5 . Low Security (%) 41 | . 91 100 39 100 . 100 14 45 . . . . . 100 95 27 19 34 . . . . . 94 . . . . 60 21 . 68 59 8 . . . Level 1 15 | . 8 . 60 . . . 4 35 . . . . . . 4 72 80 11 . . . . . 5 . . . . 39 44 . 31 27 16 . . . Level 2 13 | . . . . . . . 81 18 . . . . . . . . . 7 . . . . . . . . . . . 34 . . 12 55 22 . . Level 3 6 | . . . . . . . . . . . . . . . . . . 15 100 . . . . . . . . . . . . . . 19 24 1 . Level 4 3 | . . . . . . . . . . . . . . . . . . 27 . . . . . . . . . . . . . . . . 45 4 . Level 5 19 | . . . . . . . . . . . . . . . . . . 3 . . . . . . . . . . . . . . . . 7 94 . High Security . | . . . . . . . . . . . . . . . . . . . . . . . . . . . . . . . . . . . . . . Max Security . | . . . . . . . . . . . . . . . . . . . . . . . . . . . . . . . . . . . . . . Squads Dispatched 66 | . 2 . 1 . . . 8 15 . . . . . 1 . . . 13 1 . . . . 1 . . . . 2 3 . 4 2 4 7 2 . Investigation 9 | . . . . . . . . 3 . . . . . . . . . 3 . . . . . 1 . . . . . 1 . . . . . 1 . Extermination 14 | . . . . . . . . 4 . . . . . 1 . . . 2 . . . . . . . . . . 1 2 . 1 . 1 1 1 . Reinforcement 28 | . 2 . 1 . . . 4 8 . . . . . . . . . 4 . . . . . . . . . . 1 . . 1 2 2 3 . . Assault 5 | . . . . . . . 2 . . . . . . . . . . 1 1 . . . . . . . . . . . . . . 1 . . . Garrison 10 | . . . . . . . 2 . . . . . . . . . . 3 . . . . . . . . . . . . . 2 . . 3 . . Intercept . | . . . . . . . . . . . . . . . . . . . . . . . . . . . . . . . . . . . . . . Searches Triggered 4 | . . . . . . . . . . . . . . . . . . . . . . . . . . . . . . . . . . 1 1 2 . Construction Impeded 6 | . . . . . . . 1 4 . . . . . . . . . 1 . . . . . . . . . . . . . . . . . . . Haulers Reinforced 3 | . . . . . . . . 1 . . . . . . . . . . . . . . . . . . . . 1 . . . 1 . . . . Active Scanning Responses 1 | . . . . . . . . . . . . . . . . . . . . . . . . 1 . . . . . . . . . . . . . Cargo Convoy Interrupts . | . . . . . . . . . . . . . . . . . . . . . . . . . . . . . . . . . . . . . . Stealth | -11 -10 -10 -9 -9 -9 -8 -8 -7 -7 -7 -7 -7 -6 -6 -6 -6 -6 -6 -5 -5 -5 -5 -4 -4 -4 -4 -4 -3 -3 -3 -3 -2 -2 -2 -1 -1 -1 --------- Run | Scr Mat Min Mat Min Exi Min Mat Fac Low Low Zio Dee Pro Fac Ext Cet Arc Hub Fac Upp Upp Zhi Pro Fac Upp Upp War Pro Res Arm Lab Res Qua Sec Acc Com Ac0 Distress Signals 43 | . 2 . 3 . . . . 1 . . . . . . 1 2 . 3 . . . . . 1 . . 1 . 1 2 . 4 1 3 2 16 . Communications Jammed . | . . . . . . . . . . . . . . . . . . . . . . . . . . . . . . . . . . . . . . Distress Signals . | . . . . . . . . . . . . . . . . . . . . . . . . . . . . . . . . . . . . . . Times Spotted 773 | . 17 7 23 2 37 4 48 49 11 5 . 48 . 4 23 11 5 66 1 2 11 . 3 5 2 2 28 13 16 24 . 27 19 79 63 63 55 Peak Tracking Total 28 | . 3 2 5 2 9 4 9 5 4 2 . 12 . 2 3 5 2 8 1 1 5 . 3 3 1 1 9 8 5 7 . 16 8 28 18 19 17 Tactical Retreats 85 | . 2 1 1 . 16 . 9 2 . . . . . . . . . 3 . . . . . . . . 2 . . 2 . 2 3 16 12 10 4 Traps | -11 -10 -10 -9 -9 -9 -8 -8 -7 -7 -7 -7 -7 -6 -6 -6 -6 -6 -6 -5 -5 -5 -5 -4 -4 -4 -4 -4 -3 -3 -3 -3 -2 -2 -2 -1 -1 -1 ------- Run | Scr Mat Min Mat Min Exi Min Mat Fac Low Low Zio Dee Pro Fac Ext Cet Arc Hub Fac Upp Upp Zhi Pro Fac Upp Upp War Pro Res Arm Lab Res Qua Sec Acc Com Ac0 Traps Triggered 39 | . 1 1 7 . . . . 4 . . . . . . 2 . . 7 . . . . . . . . 1 . . 3 . 1 2 2 1 7 . Indirectly 3 | . . . . . . . . . . . . . . . . . . 3 . . . . . . . . . . . . . . . . . . . Trap Hack Attempts . | . . . . . . . . . . . . . . . . . . . . . . . . . . . . . . . . . . . . . . Triggered . | . . . . . . . . . . . . . . . . . . . . . . . . . . . . . . . . . . . . . . Disarmed 4 | . . . . . . . . . . . . . . . . . . . . . . . . . . . . . . . . 4 . . . . . Reprogrammed . | . . . . . . . . . . . . . . . . . . . . . . . . . . . . . . . . . . . . . . Reused . | . . . . . . . . . . . . . . . . . . . . . . . . . . . . . . . . . . . . . . Traps Extracted . | . . . . . . . . . . . . . . . . . . . . . . . . . . . . . . . . . . . . . . Installed . | . . . . . . . . . . . . . . . . . . . . . . . . . . . . . . . . . . . . . . Triggered 21 | . . . . . . . . . . . . . . . . . . . . . 1 . 1 . . . 19 . . . . . . . . . . Most Traps Carried 1 | . . . . . . . . . 1 1 1 1 . . . . . . . . . . . . . . . . . . . . . . . . . Exploded 3 | . . . . . 3 . . . . . . . . . . . . . . . . . . . . . . . . . . . . . . . . Machines | -11 -10 -10 -9 -9 -9 -8 -8 -7 -7 -7 -7 -7 -6 -6 -6 -6 -6 -6 -5 -5 -5 -5 -4 -4 -4 -4 -4 -3 -3 -3 -3 -2 -2 -2 -1 -1 -1 ---------- Run | Scr Mat Min Mat Min Exi Min Mat Fac Low Low Zio Dee Pro Fac Ext Cet Arc Hub Fac Upp Upp Zhi Pro Fac Upp Upp War Pro Res Arm Lab Res Qua Sec Acc Com Ac0 Machines Disabled 102 | . . . . . 10 1 7 6 . 1 . 6 . 1 3 5 2 23 . . . . . . . . 2 . 1 6 1 2 5 5 . 8 7 Max in Single Turn 10 | . . . . . 2 1 4 1 . 1 . 1 . 1 1 1 . 10 . . . . . . . . 1 . 1 1 1 1 1 1 . 2 1 Garrison Access 2 | . . . . . . . 1 . . . . . . . . . . . . . . . . . . . . . . . . . 1 . . . . Phase Generator 1 | . . . . . . . . . . . . . . . . . . . . . . . . . . . . . . . . . . . . 1 . Network Hub 3 | . . . . . . . . . . . . . . . . . . 3 . . . . . . . . . . . . . . . . . . . Machines Sabotaged . | . . . . . . . . . . . . . . . . . . . . . . . . . . . . . . . . . . . . . . Garrisons Compromised . | . . . . . . . . . . . . . . . . . . . . . . . . . . . . . . . . . . . . . . Overloaded Fab Kills . | . . . . . . . . . . . . . . . . . . . . . . . . . . . . . . . . . . . . . . Hacking | -11 -10 -10 -9 -9 -9 -8 -8 -7 -7 -7 -7 -7 -6 -6 -6 -6 -6 -6 -5 -5 -5 -5 -4 -4 -4 -4 -4 -3 -3 -3 -3 -2 -2 -2 -1 -1 -1 --------- Run | Scr Mat Min Mat Min Exi Min Mat Fac Low Low Zio Dee Pro Fac Ext Cet Arc Hub Fac Upp Upp Zhi Pro Fac Upp Upp War Pro Res Arm Lab Res Qua Sec Acc Com Ac0 Machines Accessed 116 | . 1 2 . . 2 . 5 11 1 . . . . 1 13 2 1 8 4 . 1 5 . 3 2 2 5 . 4 7 . 4 9 4 7 10 2 Terminals 68 | . 1 1 . . . . 2 3 . . . . . 1 13 2 . 7 2 . . . . 1 . . . . 2 3 . 4 7 4 6 9 . Fabricators 8 | . . . . . . . . 4 . . . . . . . . . . . . . . . 1 . . . . . 3 . . . . . . . Repair Stations 9 | . . . . . . . 1 3 . . . . . . . . . . 2 . . . . . . . . . 2 1 . . . . . . . Recycling Units 2 | . . . . . . . . 1 . . . . . . . . . . . . . . . . . . . . . . . . . . . 1 . Scanalyzers 2 | . . . . . . . 1 . . . . . . . . . . . . . . . . . . . . . . . . . 1 . . . . Garrison Access 5 | . . . . . . . 1 . . . . . . . . . . 1 . . . . . 1 . . . . . . . . 1 . 1 . . Total Hacks 375 | . 3 4 . . 2 . 17 35 1 . . . . 2 31 5 2 14 19 . 1 19 . 13 5 2 11 . 10 29 . 28 38 9 22 34 19 Successful 197 | . . 3 . . 2 . 13 16 1 . . . . 1 12 4 2 6 8 . 1 19 . 4 5 2 11 . 3 8 . 19 16 4 9 9 19 Failed 178 | . 3 1 . . . . 4 19 . . . . . 1 19 1 . 8 11 . . . . 9 . . . . 7 21 . 9 22 5 13 25 . Catastrophic 48 | . 1 . . . . . . 3 . . . . . . 5 1 . 5 1 . . . . 3 . . . . 3 7 . 1 2 1 4 11 . Database Lockouts . | . . . . . . . . . . . . . . . . . . . . . . . . . . . . . . . . . . . . . . Manual 130 | . . 3 . . 1 . 3 20 . 1 . . . 2 11 . . 8 3 . . . . 5 . . . . 3 9 . 14 13 3 4 27 . Terminals 216 | . 3 3 . . . . 5 9 . . . . . 2 31 5 . 13 5 . . . . 4 . . . . 5 13 . 28 30 9 19 32 . Fabricators 29 | . . . . . . . . 12 . . . . . . . . . . . . . . . 3 . . . . . 14 . . . . . . . Repair Stations 33 | . . . . . . . 2 10 . . . . . . . . . . 14 . . . . . . . . . 5 2 . . . . . . . Recycling Units 6 | . . . . . . . . 4 . . . . . . . . . . . . . . . . . . . . . . . . . . . 2 . Scanalyzers 14 | . . . . . . . 8 . . . . . . . . . . . . . . . . . . . . . . . . . 6 . . . . Garrison Access 14 | . . . . . . . 2 . . . . . . . . . . 1 . . . . . 6 . . . . . . . . 2 . 3 . . Terminal Hacks 137 | . . 3 . . 2 . 2 3 1 . . . . . 11 4 2 5 1 . 1 19 . 1 5 2 11 . 1 4 . 16 11 4 7 2 19 Record 43 | . . . . . 1 . . . . . . . . . . 4 2 . . . . 7 . . 4 . 10 . . . . . . . . . 15 Part Schematic 7 | . . 2 . . . . . 1 . . . . . . . . . . . . . 4 . . . . . . . . . . . . . . . Robot Analysis 5 | . . . . . . . . . . . . . . . 1 . . . . . . 4 . . . . . . . . . . . . . . . Prototype ID Bank 9 | . . . . . . . 1 . . . . . . . . . . 1 . . . 4 . . . . . . . . . . 2 . 1 . . Open Door 19 | . . 1 . . . . . . 1 . . . . . 6 . . . . . 1 . . . 1 2 1 . . . . . . 2 3 1 . Level Access Points 2 | . . . . . . . . . . . . . . . . . . . . . . . . . . . . . . . . . . 1 1 . . Branch Access Points 5 | . . . . . . . . 1 . . . . . . . . . . 1 . . . . 1 . . . . 1 . . 1 . . . . . Emergency Access Points 1 | . . . . . . . . . . . . . . . . . . . . . . . . . . . . . . 1 . . . . . . . Machine Index 1 | . . . . . . . . . . . . . . . . . . . . . . . . . . . . . . . . . 1 . . . . Terminal Index 3 | . . . . . . . . . . . . . . . . . . . . . . . . . . . . . . . . 1 . . 1 1 . Fabricator Index 2 | . . . . . . . . . . . . . . . . . . . . . . . . . . . . . . 1 . 1 . . . . . Repair Station Index 1 | . . . . . . . . . . . . . . . . . . . . . . . . . . . . . . . . 1 . . . . . Garrison Index 1 | . . . . . . . . . . . . . . . . . . . . . . . . . . . . . . . . 1 . . . . . Alert Level 6 | . . . . . . . . . . . . . . . 1 . . 1 . . . . . . . . . . . . . 2 2 . . . . Unreport Threat 9 | . . . . . . . . 1 . . . . . . 2 . . 2 . . . . . . . . . . . . . 1 3 . . . . Locate Traps 2 | . . . . . . . . . . . . . . . . . . . . . . . . . . . . . . . . 1 1 . . . . Disarm Traps 1 | . . . . . . . . . . . . . . . . . . . . . . . . . . . . . . . . 1 . . . . . Maintenance Status 1 | . . . . . . . . . . . . . . . . . . . . . . . . . . . . . . . . 1 . . . . . Transport Status 1 | . . . . . . . . . . . . . . . . . . . . . . . . . . . . . . . . 1 . . . . . Reinforcement Status 1 | . . . . . . . . . . . . . . . . . . . . . . . . . . . . . . . . 1 . . . . . Recall Reinforcements 1 | . . . . . . . 1 . . . . . . . . . . . . . . . . . . . . . . . . . . . . . . Hauler Manifests 2 | . . . . . . . . . . . . . . . 1 . . . . . . . . . . . . . . 1 . . . . . . . Registered Prototypes 1 | . . . . . . . . . . . . . . . . . . . . . . . . . . . . . . . . 1 . . . . . Zone Layout 8 | . . . . . . . . . . . . . . . . . . 1 . . . . . . . . . . . 1 . 2 2 1 1 . . EX-Prototype ID Bank 1 | . . . . . 1 . . . . . . . . . . . . . . . . . . . . . . . . . . . . . . . . Gate Test 138-B 1 | . . . . . . . . . . . . . . . . . . . . . . . . . . . . . . . . . . . . . 1 Gate Test 138-C 1 | . . . . . . . . . . . . . . . . . . . . . . . . . . . . . . . . . . . . . 1 Gate Test 138-END 2 | . . . . . . . . . . . . . . . . . . . . . . . . . . . . . . . . . . . . . 2 Fabricator Hacks 4 | . . . . . . . . 1 . . . . . . . . . . . . . . . 2 . . . . . 1 . . . . . . . Network Status 1 | . . . . . . . . 1 . . . . . . . . . . . . . . . . . . . . . . . . . . . . . Load Schematic 1 | . . . . . . . . . . . . . . . . . . . . . . . . 1 . . . . . . . . . . . . . Build 2 | . . . . . . . . . . . . . . . . . . . . . . . . 1 . . . . . 1 . . . . . . . Repair Station Hacks 16 | . . . . . . . 2 6 . . . . . . . . . . 6 . . . . . . . . . 2 . . . . . . . . Scan Component 10 | . . . . . . . 1 4 . . . . . . . . . . 4 . . . . . . . . . 1 . . . . . . . . Repair 6 | . . . . . . . 1 2 . . . . . . . . . . 2 . . . . . . . . . 1 . . . . . . . . Recycling Unit Hacks . | . . . . . . . . . . . . . . . . . . . . . . . . . . . . . . . . . . . . . . Scanalyzer 9 | . . . . . . . 7 . . . . . . . . . . . . . . . . . . . . . . . . . 2 . . . . Insert Component 6 | . . . . . . . 4 . . . . . . . . . . . . . . . . . . . . . . . . . 2 . . . . Analyze 3 | . . . . . . . 3 . . . . . . . . . . . . . . . . . . . . . . . . . . . . . . Garrison Access Hacks 2 | . . . . . . . 1 . . . . . . . . . . . . . . . . . . . . . . . . . 1 . . . . Seal Access 2 | . . . . . . . 1 . . . . . . . . . . . . . . . . . . . . . . . . . 1 . . . . Unauthorized Hacks 29 | . . . . . . . 1 6 . . . . . 1 1 . . 1 1 . . . . 1 . . . . . 3 . 3 2 . 2 7 . Terminals 21 | . . . . . . . 1 1 . . . . . 1 1 . . . 1 . . . . 1 . . . . . 2 . 3 2 . 2 6 . Track 2 | . . . . . . . . . . . . . . . . . . . . . . . . . . . . . . . . . 1 . . 1 . Assimilate 1 | . . . . . . . . . . . . . . . . . . . . . . . . . . . . . . . . . . . . 1 . Botnet 17 | . . . . . . . 1 1 . . . . . 1 1 . . . 1 . . . . 1 . . . . . 2 . 3 1 . 2 3 . Operators 1 | . . . . . . . . . . . . . . . . . . . . . . . . . . . . . . . . . . . . 1 . Fabricators 3 | . . . . . . . . 2 . . . . . . . . . . . . . . . . . . . . . 1 . . . . . . . Liberate 2 | . . . . . . . . 1 . . . . . . . . . . . . . . . . . . . . . 1 . . . . . . . Haulers 1 | . . . . . . . . 1 . . . . . . . . . . . . . . . . . . . . . . . . . . . . . Repair Stations 1 | . . . . . . . . 1 . . . . . . . . . . . . . . . . . . . . . . . . . . . . . Mechanics 1 | . . . . . . . . 1 . . . . . . . . . . . . . . . . . . . . . . . . . . . . . Recycling Units 3 | . . . . . . . . 2 . . . . . . . . . . . . . . . . . . . . . . . . . . . 1 . Monitor 1 | . . . . . . . . 1 . . . . . . . . . . . . . . . . . . . . . . . . . . . . . Mask 2 | . . . . . . . . 1 . . . . . . . . . . . . . . . . . . . . . . . . . . . 1 . Scanalyzers . | . . . . . . . . . . . . . . . . . . . . . . . . . . . . . . . . . . . . . . Garrison Access 1 | . . . . . . . . . . . . . . . . . . 1 . . . . . . . . . . . . . . . . . . . Reprogram 1 | . . . . . . . . . . . . . . . . . . 1 . . . . . . . . . . . . . . . . . . . Data Cores Recovered 2 | . . . . . . . . . . . . . . . 1 . . 1 . . . . . . . . . . . . . . . . . . . Used 1 | . . . . . . . . . . . . . . . 1 . . . . . . . . . . . . . . . . . . . . . . Hacking Detections 78 | . 1 1 . . . . 4 10 . . . . . 1 11 2 . 7 4 . . . . 3 . . . . 3 6 . 3 7 3 4 8 . Full Trace Events 4 | . . . . . . . . 2 . . . . . . . . . 1 . . . . . . . . . . . 1 . . . . . . . Feedback Events 1 | . . . . . . . . . . . . . . . . . . . . . . . . . . . . . . 1 . . . . . . . Corruption 1 | . . . . . . . . . . . . . . . . . . . . . . . . . . . . . . 1 . . . . . . . Feedback Blocked . | . . . . . . . . . . . . . . . . . . . . . . . . . . . . . . . . . . . . . . Robot Schematics Acquired 4 | . . . . . . . . . . . 4 . . . . . . . . . . . . . . . . . . . . . . . . . . Robots Built 4 | . . . . . . . . . . . . . . . . . . . . . . . . 2 . . . . . 2 . . . . . . . Authchips 1 | . . . . . . . . . . . . . . . . . . . . . . . . 1 . . . . . . . . . . . . . Time 186 | . . . . . . . . . . . . . . . . . . . . . . . . 93 . . . . . 93 . . . . . . . Total Robot Build Rating 28 | . . . . . . . . . . . . . . . . . . . . . . . . 14 . . . . . 14 . . . . . . . Part Schematics Acquired 23 | . . 2 . . . . 2 1 . . 14 . . . . . . . . . . 4 . . . . . . . . . . . . . . . Parts Built . | . . . . . . . . . . . . . . . . . . . . . . . . . . . . . . . . . . . . . . Authchips . | . . . . . . . . . . . . . . . . . . . . . . . . . . . . . . . . . . . . . . Time . | . . . . . . . . . . . . . . . . . . . . . . . . . . . . . . . . . . . . . . Total Part Build Rating . | . . . . . . . . . . . . . . . . . . . . . . . . . . . . . . . . . . . . . . Parts Repaired 6 | . . . . . . . 1 2 . . . . . . . . . . 2 . . . . . . . . . 1 . . . . . . . . Time 360 | . . . . . . . 44 156 . . . . . . . . . . 136 . . . . . . . . . 24 . . . . . . . . Parts Recycled . | . . . . . . . . . . . . . . . . . . . . . . . . . . . . . . . . . . . . . . Recycled Matter . | . . . . . . . . . . . . . . . . . . . . . . . . . . . . . . . . . . . . . . Retrieved Matter . | . . . . . . . . . . . . . . . . . . . . . . . . . . . . . . . . . . . . . . Retrieved Components . | . . . . . . . . . . . . . . . . . . . . . . . . . . . . . . . . . . . . . . Parts Scanalyzed 3 | . . . . . . . 3 . . . . . . . . . . . . . . . . . . . . . . . . . . . . . . Part Schematics Acquired 2 | . . . . . . . 2 . . . . . . . . . . . . . . . . . . . . . . . . . . . . . . Parts Damaged 1 | . . . . . . . 1 . . . . . . . . . . . . . . . . . . . . . . . . . . . . . . Bothacking | -11 -10 -10 -9 -9 -9 -8 -8 -7 -7 -7 -7 -7 -6 -6 -6 -6 -6 -6 -5 -5 -5 -5 -4 -4 -4 -4 -4 -3 -3 -3 -3 -2 -2 -2 -1 -1 -1 ------------ Run | Scr Mat Min Mat Min Exi Min Mat Fac Low Low Zio Dee Pro Fac Ext Cet Arc Hub Fac Upp Upp Zhi Pro Fac Upp Upp War Pro Res Arm Lab Res Qua Sec Acc Com Ac0 Used RIF Installer . | . . . . . . . . . . . . . . . . . . . . . . . . . . . . . . . . . . . . . . Robots Hacked . | . . . . . . . . . . . . . . . . . . . . . . . . . . . . . . . . . . . . . . Non-combat . | . . . . . . . . . . . . . . . . . . . . . . . . . . . . . . . . . . . . . . Combat . | . . . . . . . . . . . . . . . . . . . . . . . . . . . . . . . . . . . . . . Robot Hacks Applied . | . . . . . . . . . . . . . . . . . . . . . . . . . . . . . . . . . . . . . . Relay Couplers Released 4 | . . . . . . . . . . . . . . . . . . 4 . . . . . . . . . . . . . . . . . . . Programmers 4 | . . . . . . . . . . . . . . . . . . 4 . . . . . . . . . . . . . . . . . . . Fabnet Peak Effective % . | . . . . . . . . . . . . . . . . . . . . . . . . . . . . . . . . . . . . . . Robots Rewired 25 | . . . . . . . . . . . . . . . 17 . . . . 3 . . . . . . . . . 5 . . . . . . . Allies Hacked . | . . . . . . . . . . . . . . . . . . . . . . . . . . . . . . . . . . . . . . Hacks Repelled . | . . . . . . . . . . . . . . . . . . . . . . . . . . . . . . . . . . . . . . Allies | -11 -10 -10 -9 -9 -9 -8 -8 -7 -7 -7 -7 -7 -6 -6 -6 -6 -6 -6 -5 -5 -5 -5 -4 -4 -4 -4 -4 -3 -3 -3 -3 -2 -2 -2 -1 -1 -1 -------- Run | Scr Mat Min Mat Min Exi Min Mat Fac Low Low Zio Dee Pro Fac Ext Cet Arc Hub Fac Upp Upp Zhi Pro Fac Upp Upp War Pro Res Arm Lab Res Qua Sec Acc Com Ac0 Total Allies 51 | . . 1 . . . . . 3 . . 6 . . . 26 . . 2 . 3 . . . 2 . . . . . 7 . . . . . 1 . Largest Group 19 | . . 1 . . . . . 3 . . 6 6 . . 19 17 5 2 . 3 2 2 2 2 2 2 1 . . 3 . . . . . 1 . Highest-Rated Group 707 | . . 31 . . . . . 93 . . 163 163 . . 707 637 146 86 . 93 62 62 62 136 136 136 68 . . 141 . . . . . 45 . Highest-Rated Ally 159 | . . 31 . . . . . 31 . . 32 32 . . 159 159 39 43 . 31 31 31 31 68 68 68 68 . . 68 . . . . . 45 . Total Orders 3 | . . . . . . . . . . . . . . . . . . . . . 2 . . . . . . . . . . . . . . 1 . STAY 2 | . . . . . . . . . . . . . . . . . . . . . 1 . . . . . . . . . . . . . . 1 . FOLLOW 1 | . . . . . . . . . . . . . . . . . . . . . 1 . . . . . . . . . . . . . . . . Ally Attacks 596 | . . 4 . . . . . 34 . . . 217 . . 102 83 22 26 . 1 22 . 7 9 4 5 1 . . 59 . . . . . . . Total Damage 14342 | . . 61 . . . . . 450 . . . 4761 . . 2011 1520 373 802 . . 414 . 104 781 302 535 45 . . 2183 . . . . . . . Kills 75 | . . 2 . . . . . 3 . . . 16 . . 16 10 3 1 . . 4 . 1 5 2 1 . . . 11 . . . . . . . Allies Corrupted 1 | . . . . . . . . . . . . . . . . . . . . . . . . . . . . . . 1 . . . . . . . Allies Melted 6 | . . . . . . . . . . . . . . . . . . 1 . . . . . . . 1 4 . . . . . . . . . . Intel | -11 -10 -10 -9 -9 -9 -8 -8 -7 -7 -7 -7 -7 -6 -6 -6 -6 -6 -6 -5 -5 -5 -5 -4 -4 -4 -4 -4 -3 -3 -3 -3 -2 -2 -2 -1 -1 -1 ------- Run | Scr Mat Min Mat Min Exi Min Mat Fac Low Low Zio Dee Pro Fac Ext Cet Arc Hub Fac Upp Upp Zhi Pro Fac Upp Upp War Pro Res Arm Lab Res Qua Sec Acc Com Ac0 Robot Analysis Total 5 | . . . . . . . . . . . . . . . 1 . . . . . . 4 . . . . . . . . . . . . . . . Derelict Logs Recovered 15 | . . 2 . . . . . . 2 2 2 . 2 . . . . . . 1 1 . 1 . 1 1 . . . . . . . . . . . Drone Launches . | . . . . . . . . . . . . . . . . . . . . . . . . . . . . . . . . . . . . . . Drone Recoveries . | . . . . . . . . . . . . . . . . . . . . . . . . . . . . . . . . . . . . . . Exploration | -11 -10 -10 -9 -9 -9 -8 -8 -7 -7 -7 -7 -7 -6 -6 -6 -6 -6 -6 -5 -5 -5 -5 -4 -4 -4 -4 -4 -3 -3 -3 -3 -2 -2 -2 -1 -1 -1 ------------- Run | Scr Mat Min Mat Min Exi Min Mat Fac Low Low Zio Dee Pro Fac Ext Cet Arc Hub Fac Upp Upp Zhi Pro Fac Upp Upp War Pro Res Arm Lab Res Qua Sec Acc Com Ac0 Turns Passed 48349 | . 634 1121 866 579 3139 297 1710 2075 1396 1137 1922 3524 571 462 1793 288 291 1447 700 1431 1725 968 938 478 2600 2988 2045 1691 709 1115 818 274 640 759 440 4127 651 Spaces Moved 28547 | 1 259 653 335 235 1191 100 609 1106 885 595 1183 1481 300 231 765 135 148 679 339 863 1038 328 457 162 1080 1197 860 198 366 624 496 267 999 1362 954 4666 1400 Core . | . . . . . . . . . . . . . . . . . . . . . . . . . . . . . . . . . . . . . . Treads 10387 | . 137 519 281 235 959 . 287 75 . . . . . . . 104 148 679 339 863 1038 328 457 162 1080 1197 726 . 95 624 54 . . . . . . Legs 3127 | 1 122 134 54 . 232 72 2 . . . . 580 300 231 765 31 . . . . . . . . . . 134 198 271 . . . . . . . . Wheels 4943 | . . . . . . 28 320 1031 885 595 1183 901 . . . . . . . . . . . . . . . . . . . . . . . . . Hover 10090 | . . . . . . . . . . . . . . . . . . . . . . . . . . . . . . . 442 267 999 1362 954 4666 1400 Flight . | . . . . . . . . . . . . . . . . . . . . . . . . . . . . . . . . . . . . . . Fastest Speed 20 | 120 120 125 125 240 160 145 145 115 130 145 145 132 189 189 189 160 160 160 160 160 160 160 160 160 240 160 97 169 118 145 20 20 20 20 20 20 20 Average Speed 127 | 120 171 154 195 240 231 188 237 155 151 159 157 165 189 189 189 167 160 160 160 160 160 160 160 239 240 239 201 172 138 145 43 52 31 32 21 27 22 Slowest Speed 400 | 120 190 240 400 240 240 330 330 250 160 160 160 260 189 189 189 240 160 160 160 160 160 160 160 240 240 240 245 175 225 145 145 140 140 36 112 125 25 Overloaded Moves . | . . . . . . . . . . . . . . . . . . . . . . . . . . . . . . . . . . . . . . Propulsion Burnouts . | . . . . . . . . . . . . . . . . . . . . . . . . . . . . . . . . . . . . . . Robots Hopped 5 | . . 5 . . . . . . . . . . . . . . . . . . . . . . . . . . . . . . . . . . . Cave-ins Triggered 2 | . . . . . . . . . . . . . . . . . . . . . . . . . . . 2 . . . . . . . . . . Teleports 3 | . . . . . . . . . . . . . . . . . . . . . . . . . . . . . . 1 . . 1 . . 1 . Exploration Rate (%) 58 | 2 43 98 35 37 88 19 40 29 81 59 86 88 49 8 85 71 96 77 8 87 89 62 60 7 92 93 89 38 11 41 96 15 83 75 29 91 80 Regions Visited 37 Branch Regions 27 Pre-discovered Areas 8 | . . . . . 1 . . . 1 . 2 . . . . . . . . . . 3 . . 1 . . . . . . . . . . . . Known Exits Taken 20 | . . 1 . . . . . 1 1 1 . . 1 1 . . . 1 1 1 1 1 1 1 1 1 . 1 1 . . 1 1 1 . . . Unknown Exits Taken 17 | 1 1 . 1 1 1 1 1 . . . 1 1 . . 1 1 1 . . . . . . . . . 1 . . 1 1 . . . 1 1 . Scrap Searched 35 | . . 1 . 1 . . . . 8 3 2 . 4 . . . . . . 4 3 . . . 4 4 . 1 . . . . . . . . . Spaces Dug 159 | . . . . . . . . 7 . . 3 14 . . 7 . . 10 3 1 . . 8 4 . 6 6 . 22 3 . 8 13 17 16 9 2 Terrain Destroyed 1718 | . . . 29 . 21 28 94 65 27 5 3 163 . 4 14 . 5 744 6 4 39 . 11 8 . 7 186 27 30 10 . 10 13 17 25 96 27 Melee 53 | . . . . . . . . . . . 3 . . . . . . . . . . . . . . . . . . . . . 13 10 16 9 2 Projectile 243 | . . . 1 . . 6 5 20 . 5 . 8 . 4 14 . 5 37 6 4 4 . 11 8 . 7 6 11 30 10 . 9 . 7 1 5 19 AOE 1408 | . . . 28 . 21 21 88 45 27 . . 155 . . . . . 707 . . 35 . . . . . 180 16 . . . . . . 8 77 . Terrain Rammed 1 | . . . . . . . . . . . . . . . . . . . . . . . . . . . . . . . . 1 . . . . . Walls Destroyed 1 | . . . . . . . . . . . . . . . . . . . . . . . . . . . . . . . . 1 . . . . . Machines Disabled . | . . . . . . . . . . . . . . . . . . . . . . . . . . . . . . . . . . . . . . Actions | -11 -10 -10 -9 -9 -9 -8 -8 -7 -7 -7 -7 -7 -6 -6 -6 -6 -6 -6 -5 -5 -5 -5 -4 -4 -4 -4 -4 -3 -3 -3 -3 -2 -2 -2 -1 -1 -1 --------- Run | Scr Mat Min Mat Min Exi Min Mat Fac Low Low Zio Dee Pro Fac Ext Cet Arc Hub Fac Upp Upp Zhi Pro Fac Upp Upp War Pro Res Arm Lab Res Qua Sec Acc Com Ac0 Total 38582 | . 359 709 461 240 1468 162 770 1327 927 746 1221 2452 304 242 1034 187 180 880 489 902 1070 754 641 237 1087 1309 1123 1522 501 839 1102 364 1266 1593 1129 7262 1723 Wait 6740 | . 38 5 15 . 118 5 48 55 . 109 4 706 . 2 43 36 18 48 137 . 5 375 171 62 . 94 163 1272 38 103 538 46 118 67 81 2181 39 Move 28499 | . 258 642 335 234 1190 99 608 1105 884 594 1182 1480 299 230 764 134 147 678 338 862 1037 327 456 161 1079 1196 857 197 365 623 495 266 998 1361 953 4665 1400 Hop 5 | . . 5 . . . . . . . . . . . . . . . . . . . . . . . . . . . . . . . . . . . Pick Up 355 | . 6 11 16 . 22 9 8 18 11 5 6 54 1 1 1 . 1 7 1 . 2 3 . . 1 1 18 1 7 12 15 4 17 16 8 31 41 Fast Attach 288 | . 2 7 23 . 7 1 11 12 3 4 5 18 2 1 4 4 . 15 4 2 2 7 . 1 3 4 11 4 12 8 3 . 26 28 14 33 7 Attach 212 | . 3 3 6 . 16 3 6 11 4 3 4 15 . 1 . . . 4 2 . 2 1 . 2 . . 7 2 4 1 14 2 15 14 9 25 33 Detach 65 | . . 1 2 . 5 1 1 2 3 1 . 2 . . . . . 2 1 . . . . 1 . 1 1 3 2 . 2 . 8 4 7 11 4 Swap 117 | . 4 1 6 . 10 8 10 6 1 . 1 6 . . 1 . 2 8 . 1 2 . . . . 1 2 . 2 2 1 2 3 6 3 18 10 Drop 579 | . 2 8 16 . 23 11 14 26 8 10 8 75 2 . 5 6 1 5 1 3 2 18 2 1 3 7 28 21 22 17 25 3 40 34 18 69 45 Fire 1125 | . 45 26 40 6 55 25 64 91 13 20 1 92 . 7 45 7 11 113 5 6 13 23 12 9 1 5 33 22 45 44 9 30 15 15 10 57 110 Melee 307 | . . . . . 22 . . . . . 10 4 . . . . . . . . 5 . . . . . . . 4 . . 10 26 48 26 118 34 Ram 2 | . . . . . . . . 1 . . . . . . . . . . . . . . . . . . . . . . . 1 . . . . . Kick 2 | . . . . . . . . . . . . . . . 1 . . . . . . . . . . . 1 . . . . . . . . . . Crush 3 | . 1 . 2 . . . . . . . . . . . . . . . . . . . . . . . . . . . . . . . . . . Escape Stasis 49 | . . . . . . . . . . . . . . . 5 . . . . . . . . . . . 2 . . . . . . . . 42 . Rewire 234 | . . . . . . . . . . . . . . . 165 . . . . 28 . . . . . . . . . 29 . . . . . 12 . Trap . | . . . . . . . . . . . . . . . . . . . . . . . . . . . . . . . . . . . . . . Miscellaneous . | . . . . . . . . . . . . . . . . . . . . . . . . . . . . . . . . . . . . . . Route ------- -11/Scrapyard -10/Materials (discovered 2 exits: *Mat / *Min) -10/Mines (discovered 2 exits: *Mat x2) -9/Materials -9/Mines -9/Exiles (discovered 2 exits: [*Min x2]) -8/Mines -8/Materials (discovered 2 exits: *Fac x2) -7/Factory (discovered 3 exits: *Fac / *Low x2) -7/Lower Caves -7/Lower Caves -7/Zion (discovered 2 exits: [*Dee] / [*Pro]) -7/Deep Caves -6/Proximity Caves -6/Factory (discovered 3 exits: *Low x2 / *Ext) -6/Extension (discovered 2 exits: *Fac / *Cet) -6/Cetus -6/Archives (discovered 3 exits: *Fac / *Hub x2) -6/Hub_04(d) (discovered 3 exits: *Fac x3) -5/Factory (discovered 2 exits: *Upp x2) -5/Upper Caves -5/Upper Caves (discovered 2 exits: *Fac / *Zhi) -5/Zhirov -4/Proximity Caves -4/Factory (discovered 4 exits: *Res x2 / *Upp x2) -4/Upper Caves (discovered 2 exits: *Upp / *War) -4/Upper Caves (discovered 2 exits: *Res / *War) -4/Warlord -3/Proximity Caves -3/Research (discovered 4 exits: *Res / *Arm / *Tes x2) -3/Armory (discovered 2 exits: Res / *Lab) -3/Lab -2/Research (discovered 2 exits: *Qua x2) -2/Quarantine -2/Section 7 -1/Access (discovered 2 exits: Sur / *Com) -1/Command (discovered 3 exits: *Sur x2 / *Ac0) -1/Access_0 Subspace History --------- Turn | Location | Event 1 | -11/Scrapyard | Discovered new exit (range 0) 1 | -11/Scrapyard | Entered Materials 309 | -10/Materials | Build established: Mutant 314 | -10/Materials | Discovered new exit (range 13) 611 | -10/Materials | Discovered new exit (range 16) 635 | -10/Materials | Entered Mines 638 | -10/Mines | Received a Mining Laser from a helpful Derelict 700 | -10/Mines | Discovered new exit (range 13) 1056 | -10/Mines | Identified exit to Materials 1075 | -10/Mines | Core integrity fell below 50% 1423 | -10/Mines | Build established: Scavenger-Mutant 1482 | -10/Mines | Learned Materials emergency access door positions 1495 | -10/Mines | Received a Rocket Launcher from a helpful Derelict 1556 | -10/Mines | Met a Derelict who couldn't figure out how to use a Trap Extractor 1592 | -10/Mines | System corruption reached 10% 1690 | -10/Mines | A weapon hastily lodged in a ceiling crevice suddenly fell to the ground 1756 | -10/Mines | Entered Materials 1756 | -9/Materials | Evolved 2 slots: Propulsion x1, Utility x1 1859 | -9/Materials | Build established: Mutant 2593 | -9/Materials | Discovered new exit (range 8) 2622 | -9/Materials | Entered Mines 3191 | -9/Mines | Deemed a non-threat by the Exiles lab entrance 3191 | -9/Mines | Discovered new exit (range 5) 3201 | -9/Mines | Entered Exiles 3240 | -9/Exiles | Discovered new exit (range 15) 3261 | -9/Exiles | Met 8R-AWN 3301 | -9/Exiles | Met EX-HEX 3378 | -9/Exiles | Met EX-BIN 3406 | -9/Exiles | Aligned with FarCom system 3409 | -9/Exiles | Given EX-Vault access code 3469 | -9/Exiles | Opened EX-Vault 3524 | -9/Exiles | Warned to stay clear of 0b10 Research branches 3598 | -9/Exiles | Met EX-DEC 3610 | -9/Exiles | Learned location of Zion (-7) 4452 | -9/Exiles | Found Longsword +1 4460 | -9/Exiles | Found Latent Energy Streamer 4626 | -9/Exiles | Attacked by the Exiles 4801 | -9/Exiles | Destroyed 8R-AWN 4815 | -9/Exiles | Found Prototype Protection 4818 | -9/Exiles | Found Prototype Ballistic Gun 4828 | -9/Exiles | Lost 5 parts (1p3n1u) 4828 | -9/Exiles | Found Prototype Processor 4832 | -9/Exiles | Found Prototype Ballistic Gun 4861 | -9/Exiles | Found Prototype Device 5445 | -9/Exiles | Identified 8R-AWN's Boregun (x2) 5498 | -9/Exiles | Destroyed EX-HEX 5500 | -9/Exiles | Destroyed EX-DEC 5534 | -9/Exiles | Destroyed EX-BIN 5546 | -9/Exiles | Found Prototype Device 5546 | -9/Exiles | Identified System Purifier 5808 | -9/Exiles | Found Prototype Processor 5878 | -9/Exiles | Build established: Scavenger-Mutant 6076 | -9/Exiles | Identified Exp. Targeting Computer 6077 | -9/Exiles | Identified Exp. Core Analyzer 6086 | -9/Exiles | Identified 8R-AWN's Armor/EX 6091 | -9/Exiles | Identified AS-neutralizer No. 17b 6318 | -9/Exiles | Discovered new exit (range 14) 6340 | -9/Exiles | Entered Mines 6342 | -8/Mines | Core integrity fell below 50% 6433 | -8/Mines | AD-0RF came to Exiles' defense 6485 | -8/Mines | Core integrity fell below 20% 6485 | -8/Mines | Destroyed AD-0RF 6500 | -8/Mines | Found Prototype Special Weapon 6527 | -8/Mines | Found Prototype Device 6551 | -8/Mines | Discovered new exit (range 6) 6573 | -8/Mines | Identified AD-0RF's Magmablaster 6637 | -8/Mines | Entered Materials 6637 | -8/Materials | Evolved 2 slots: Utility x2 6692 | -8/Materials | Repaired Exp. Heat Sink 6768 | -8/Materials | Identified Exp. Thermal Shield 6857 | -8/Materials | Garrison activated, responded to threat 6947 | -8/Materials | Lost 3 parts (1p1u1w) 6959 | -8/Materials | Destroyed 8 combat bots 7004 | -8/Materials | Discovered new exit (range 15) 7344 | -8/Materials | Lost 3 parts (2u1w) 7409 | -8/Materials | Found Prototype Device 8110 | -8/Materials | Discovered new exit (range 15) 8237 | -8/Materials | First assault squad dispatched 8347 | -8/Materials | Entered Factory 8347 | -7/Factory | Evolved 2 slots: Propulsion x1, Utility x1 8561 | -7/Factory | Allied Derelicts emerged from ambush trap array 9098 | -7/Factory | Repaired Broken Adv. Myomer Leg 9787 | -7/Factory | Repaired Rocket Launcher 9826 | -7/Factory | Discovered new exit (range 7) 9868 | -7/Factory | Identified exit to Lower Caves 10262 | -7/Factory | Destroyed 9 combat bots 10280 | -7/Factory | Build established: Mutant 10422 | -7/Factory | Entered Lower Caves 10536 | -7/Lower Caves | System corruption reached 10% 10741 | -7/Lower Caves | Identified Active Sensor Suite 11572 | -7/Lower Caves | Discovered new exit (range 5) 11583 | -7/Lower Caves | Identified exit to Lower Caves 11622 | -7/Lower Caves | Learned Factory terminal intel 11780 | -7/Lower Caves | Build established: Skirmisher 11818 | -7/Lower Caves | Entered another Lower Caves area 11989 | -7/Lower Caves | Learned Factory security intel 12100 | -7/Lower Caves | Acquired the password to a Derelict Tinkerer's latest research 12129 | -7/Lower Caves | Found Prototype Special Weapon 12218 | -7/Lower Caves | Encountered a Warlord checkpoint 12296 | -7/Lower Caves | Caught by Unaware searching for contraband prototypes 12742 | -7/Lower Caves | Discovered new exit (range 10) 12953 | -7/Lower Caves | Identified exit to Zion 12955 | -7/Lower Caves | Entered Zion 13136 | -7/Zion | System corruption cleaned by Quarantine Array 13250 | -7/Zion | Build established: Mutant 13279 | -7/Zion | Discovered new exit (range 8) 13306 | -7/Zion | Gained Derelict followers 13933 | -7/Zion | Found CR-A16's Pointy Stick 14099 | -7/Zion | Gained Derelict followers 14217 | -7/Zion | Build established: Assassin 14388 | -7/Zion | Learned location of Data Miner (-6) 14393 | -7/Zion | Learned location of Quarantine (-2) 14671 | -7/Zion | Found Prototype Special Weapon 14673 | -7/Zion | Found Prototype Special Weapon 14676 | -7/Zion | Found Prototype Special Weapon 14679 | -7/Zion | Found Prototype Special Weapon 14838 | -7/Zion | Identified RU-N14's Throwing Claymores (x4) 14863 | -7/Zion | Discovered new exit (range 4) 14866 | -7/Zion | Saw the warning signs outside the Deep Caves entrance 14877 | -7/Zion | Entered Deep Caves 14877 | -7/Deep Caves | Accompanied by 6 allies 14954 | -7/Deep Caves | Build established: Derelict-Mutant 15209 | -7/Deep Caves | Z-Facility disabled 15214 | -7/Deep Caves | Attacked by Z-Imprinter 15222 | -7/Deep Caves | Allies destroyed Z-Imprinter 15247 | -7/Deep Caves | Found Prototype Device 15247 | -7/Deep Caves | Identified Zio. Metafield Generator 15260 | -7/Deep Caves | Found Prototype Protection 15260 | -7/Deep Caves | Identified Zio. Weapon Casing 15416 | -7/Deep Caves | Found Prototype Protection 15416 | -7/Deep Caves | Identified Zio. Heavy Carapace 15475 | -7/Deep Caves | Build established: Mutant 15602 | -7/Deep Caves | Found Zio. Heavy Carapace 15619 | -7/Deep Caves | Found Zio. Weapon Casing 16058 | -7/Deep Caves | Discovered new exit (range 7) 16160 | -7/Deep Caves | Spotted as-44141 16186 | -7/Deep Caves | Exposed GOLEM chamber 16208 | -7/Deep Caves | Destroyed as-44141 16209 | -7/Deep Caves | Lost 3 parts (3u) 16265 | -7/Deep Caves | Triggered Deep Caves wall 16268 | -7/Deep Caves | Spotted AS-57552 16270 | -7/Deep Caves | Destroyed AS-57552 16271 | -7/Deep Caves | Spotted AS-34476 16279 | -7/Deep Caves | Destroyed AS-34476 16339 | -7/Deep Caves | Found GOLEM Unit 16397 | -7/Deep Caves | Found GOLEM Unit 16399 | -7/Deep Caves | Found GOLEM Unit 16715 | -7/Deep Caves | Build established: Golem 17103 | -7/Deep Caves | Spotted as-60715 17117 | -7/Deep Caves | Core integrity fell below 50% 17146 | -7/Deep Caves | Destroyed as-60715 17168 | -7/Deep Caves | Lost 4 parts (1p1n1u1w) 17206 | -7/Deep Caves | Destroyed 16 combat bots 17213 | -7/Deep Caves | Found GOLEM Unit 17232 | -7/Deep Caves | Found Supersonic Drone Bay 17884 | -7/Deep Caves | Build established: Mutant 17947 | -7/Deep Caves | Found Zio. Weapon Casing 18218 | -7/Deep Caves | Found Zio. Heavy Carapace 18401 | -7/Deep Caves | Entered Proximity Caves 18555 | -6/Proximity Caves | Learned Factory terminal intel 18894 | -6/Proximity Caves | Identified exit to Factory 18972 | -6/Proximity Caves | Entered Factory 18972 | -6/Factory | Evolved 2 slots: Power x1, Utility x1 18973 | -6/Factory | Identified exit to Lower Caves 18973 | -6/Factory | Identified exit to Extension 18975 | -6/Factory | Loaded intel: 28 terminal locations 19298 | -6/Factory | Discovered exit to Lower Caves (range 3) 19434 | -6/Factory | Entered Extension 19550 | -6/Extension | Rescued a captive Derelict 20021 | -6/Extension | Rescued a captive Derelict 20031 | -6/Extension | Build established: Commander-Mutant 20049 | -6/Extension | Rescued A7 20075 | -6/Extension | Spotted B-75 Beast 20538 | -6/Extension | Destroyed B-75 Beast 20551 | -6/Extension | Spotted B-75 Beast 20568 | -6/Extension | Destroyed B-75 Beast 20848 | -6/Extension | Rescued a captive Derelict 20859 | -6/Extension | Rescued a captive Derelict 21003 | -6/Extension | Rescued a captive Derelict 21020 | -6/Extension | Rescued a captive Derelict 21130 | -6/Extension | Rescued a captive Derelict 21131 | -6/Extension | Rescued a captive Derelict 21187 | -6/Extension | Discovered new exit (range 10) 21189 | -6/Extension | Discovered new exit (range 6) 21227 | -6/Extension | Entered Cetus 21227 | -6/Cetus | Accompanied by 17 allies (A7) 21232 | -6/Cetus | Acquired a Cetus Manufacturing Module code from A7 21250 | -6/Cetus | Spotted Cetus Guard 21250 | -6/Cetus | Spotted Cetus Guard 21252 | -6/Cetus | Spotted Cetus Guard 21253 | -6/Cetus | Spotted Cetus Guard 21256 | -6/Cetus | Allies destroyed Cetus Guard 21266 | -6/Cetus | Allies destroyed Cetus Guard 21269 | -6/Cetus | Allies destroyed Cetus Guard 21272 | -6/Cetus | Allies destroyed Cetus Guard 21291 | -6/Cetus | Cetus Manufacturing Module disabled 21389 | -6/Cetus | Escorted A7 to Cetus Mainframe 21426 | -6/Cetus | Discovered new exit (range 16) 21464 | -6/Cetus | Destroyed A7 21467 | -6/Cetus | Extracted ID and sensor layout for unrecognized location from A7's data core 21515 | -6/Cetus | Entered Archives 21515 | -6/Archives | Accompanied by 5 allies 21608 | -6/Archives | Unable to access archive contents 21634 | -6/Archives | Unable to access archive contents 21650 | -6/Archives | Unable to access archive contents 21653 | -6/Archives | Discovered new exit (range 15) 21664 | -6/Archives | Build established: Scavenger-Mutant 21708 | -6/Archives | Discovered new exit (range 16) 21762 | -6/Archives | Discovered new exit (range 16) 21806 | -6/Archives | Entered Hub_04(d) 21806 | -6/Hub_04(d) | Accompanied by 1 ally 21951 | -6/Hub_04(d) | Discovered new exit (range 14) 22041 | -6/Hub_04(d) | Discovered new exit (range 16) 22343 | -6/Hub_04(d) | Discovered new exit (range 8) 22387 | -6/Hub_04(d) | Spotted B-75 Beast 22418 | -6/Hub_04(d) | Garrison activated, responded to threat 22424 | -6/Hub_04(d) | Destroyed B-75 Beast 22487 | -6/Hub_04(d) | Destroyed 11 combat bots 22506 | -6/Hub_04(d) | First assault squad dispatched 22629 | -6/Hub_04(d) | Destroyed 12 combat bots 22801 | -6/Hub_04(d) | Network Hub disabled 22816 | -6/Hub_04(d) | Spotted Lightning 22816 | -6/Hub_04(d) | Spotted Lightning 22818 | -6/Hub_04(d) | Spotted Lightning 22827 | -6/Hub_04(d) | Destroyed Lightning 22831 | -6/Hub_04(d) | Destroyed Lightning 22847 | -6/Hub_04(d) | Destroyed Lightning 22916 | -6/Hub_04(d) | System corruption reached 10% 23116 | -6/Hub_04(d) | Network Hub disabled 23146 | -6/Hub_04(d) | Spotted Lightning 23157 | -6/Hub_04(d) | Spotted Lightning 23157 | -6/Hub_04(d) | Spotted Lightning 23157 | -6/Hub_04(d) | Destroyed Lightning 23171 | -6/Hub_04(d) | Destroyed Lightning 23175 | -6/Hub_04(d) | Destroyed Lightning 23195 | -6/Hub_04(d) | Lost 5 parts (2p3u) 23202 | -6/Hub_04(d) | Network Hub disabled 23214 | -6/Hub_04(d) | System corruption reached 30% 23219 | -6/Hub_04(d) | Found Corrupted Active Sensor Suite 23251 | -6/Hub_04(d) | Identified exit to Factory 23253 | -6/Hub_04(d) | Entered Factory 23253 | -5/Factory | Evolved 2 slots: Utility x2 23254 | -5/Factory | Loaded intel: 26 terminal locations 23324 | -5/Factory | Identified exit to Upper Caves 23469 | -5/Factory | Build established: Scavenger-Skirmisher 23515 | -5/Factory | Repaired Broken Centrium Heavy Treads 23765 | -5/Factory | Repaired Broken Centrium Heavy Treads 23853 | -5/Factory | First assault squad dispatched 23953 | -5/Factory | Entered Upper Caves 23979 | -5/Upper Caves | Attacked by a delusional Derelict stockpiling Unaware 23993 | -5/Upper Caves | Learned Factory trap positions 25034 | -5/Upper Caves | Discovered new exit (range 5) 25383 | -5/Upper Caves | Identified exit to Upper Caves 25384 | -5/Upper Caves | Entered another Upper Caves area 25384 | -5/Upper Caves | Accompanied by 2 allies 25384 | -5/Upper Caves | Discovered new exit (range 16) 25419 | -5/Upper Caves | Identified exit to Factory 25663 | -5/Upper Caves | Attracted the attention of an 0b10 checkpoint 25750 | -5/Upper Caves | Lost 3 parts (1u2w) 26010 | -5/Upper Caves | Build established: Scavenger-Mutant 26068 | -5/Upper Caves | Discovered new exit (range 15) 26089 | -5/Upper Caves | Identified exit to Zhirov 26193 | -5/Upper Caves | Spotted B-75 Beast 26203 | -5/Upper Caves | Revealed the true nature of CR-A16's Pointy Stick 26209 | -5/Upper Caves | Destroyed B-75 Beast 26463 | -5/Upper Caves | Learned 4 Factory zone layouts 26599 | -5/Upper Caves | Build established: Scavenger-Skirmisher 27109 | -5/Upper Caves | Entered Zhirov 27109 | -5/Zhirov | Accompanied by 2 allies 27109 | -5/Zhirov | Discovered new exit (range 4) 27138 | -5/Zhirov | Met Zhirov 27458 | -5/Zhirov | Found Alien Artifact 27458 | -5/Zhirov | Identified Integrated Reactor 27458 | -5/Zhirov | Installed Integrated Reactor, increased core energy generation (+10) 27493 | -5/Zhirov | Learned location of Testing (-3) 27493 | -5/Zhirov | Learned location of Command (-1) 27530 | -5/Zhirov | Zhirov requested help retrieving the SGEMP Prototype 27557 | -5/Zhirov | Found Alien Artifact 28074 | -5/Zhirov | Identified exit to Proximity Caves 28077 | -5/Zhirov | Entered Proximity Caves 28077 | -4/Proximity Caves | Accompanied by 2 allies 28467 | -4/Proximity Caves | Learned Research trap positions 28477 | -4/Proximity Caves | Attracted the attention of an 0b10 checkpoint 28697 | -4/Proximity Caves | Discovered exit to Factory (range 4) 29015 | -4/Proximity Caves | Entered Factory 29015 | -4/Factory | Evolved 2 slots: Utility x2 29016 | -4/Factory | Identified exit to Research 29016 | -4/Factory | Identified exit to Upper Caves 29017 | -4/Factory | Loaded intel: 92 trap records 29145 | -4/Factory | Build established: Scavenger-Golem 29400 | -4/Factory | Fabricated X-77 Beamer (x2) 29403 | -4/Factory | Discovered exit to Research (range 15) 29493 | -4/Factory | Entered Upper Caves 29493 | -4/Upper Caves | Accompanied by 2 allies 29598 | -4/Upper Caves | Build established: Scavenger-Skirmisher 29732 | -4/Upper Caves | Identified exit to Upper Caves 29834 | -4/Upper Caves | Learned location of Armory (-3) 29834 | -4/Upper Caves | Learned 8 Factory zone layouts 29834 | -4/Upper Caves | Learned Extension terminal intel 30377 | -4/Upper Caves | A Derelict revealed a hidden shortcut to "reach the base" 30378 | -4/Upper Caves | Identified exit to Warlord 32093 | -4/Upper Caves | Entered another Upper Caves area 32093 | -4/Upper Caves | Accompanied by 2 allies 32413 | -4/Upper Caves | Discovered exit to Research (range 16) 32518 | -4/Upper Caves | Learned Research emergency access door positions 32636 | -4/Upper Caves | Spotted B-86 Titan 32662 | -4/Upper Caves | Allies destroyed B-86 Titan 32945 | -4/Upper Caves | Build established: Scavenger-Golem 33108 | -4/Upper Caves | Attracted the attention of an 0b10 checkpoint 34302 | -4/Upper Caves | Build established: Scavenger-Skirmisher 34383 | -4/Upper Caves | Discovered exit to Warlord (range 13) 35081 | -4/Upper Caves | Entered Warlord 35081 | -4/Warlord | Accompanied by 1 ally 35149 | -4/Warlord | Discovered new exit (range 9) 35792 | -4/Warlord | Learned 4 Armory zone layouts 35792 | -4/Warlord | Learned 4 Quarantine zone layouts 35794 | -4/Warlord | Learned Quarantine security intel 35794 | -4/Warlord | Learned Factory terminal intel 35794 | -4/Warlord | Learned Factory fabricator intel 35794 | -4/Warlord | Learned Armory recycling unit intel 35794 | -4/Warlord | Learned Research terminal intel 36017 | -4/Warlord | Met Warlord 36042 | -4/Warlord | Warlord's base attacked by MAIN.C 36090 | -4/Warlord | Found Prototype Reactor 36090 | -4/Warlord | Identified Vortex Chain Reactor 36095 | -4/Warlord | Found Prototype Device 36095 | -4/Warlord | Identified Exp. Cloaking Device 36108 | -4/Warlord | Found Prototype Hackware 36392 | -4/Warlord | Warlord forces counterattacked 36455 | -4/Warlord | Destroyed Executioner 36536 | -4/Warlord | Crushed by falling debris 36539 | -4/Warlord | Crushed by falling debris 36570 | -4/Warlord | Lost 3 parts (1p2u) 36717 | -4/Warlord | Warlord base infiltrated, sounded retreat 36718 | -4/Warlord | Enhanced Grunt warped into view 36718 | -4/Warlord | Enhanced Grunt warped into view 36718 | -4/Warlord | Enhanced Grunt warped into view 36718 | -4/Warlord | Enhanced Demolisher warped into view 36718 | -4/Warlord | Enhanced Demolisher warped into view 36718 | -4/Warlord | Enhanced Demolisher warped into view 36830 | -4/Warlord | Build established: Golem 36842 | -4/Warlord | Spotted Executioner 36844 | -4/Warlord | Found Prototype Launcher 36844 | -4/Warlord | Identified Chain Missile Launcher 36853 | -4/Warlord | Destroyed Executioner 36962 | -4/Warlord | Found Prototype Ballistic Cannon 36998 | -4/Warlord | Found Prototype Ballistic Cannon 37008 | -4/Warlord | Spotted Executioner 37011 | -4/Warlord | Destroyed Executioner 37036 | -4/Warlord | Destroyed 7 combat bots 37126 | -4/Warlord | Entered Proximity Caves 37128 | -3/Proximity Caves | Attracted the attention of an 0b10 checkpoint 37137 | -3/Proximity Caves | Identified Hvy. Autocannon 37171 | -3/Proximity Caves | Destroyed 8 combat bots 37865 | -3/Proximity Caves | Build established: Scavenger-Golem 38036 | -3/Proximity Caves | Spotted B-86 Titan 38059 | -3/Proximity Caves | Destroyed B-86 Titan 38094 | -3/Proximity Caves | Discovered exit to Research (range 13) 38817 | -3/Proximity Caves | Entered Research 38817 | -3/Research | Evolved 2 slots: Propulsion x2 38818 | -3/Research | Loaded intel: 88 trap records 38820 | -3/Research | Loaded intel: 22 terminal locations 38921 | -3/Research | Spotted B-86 Titan 38933 | -3/Research | Destroyed B-86 Titan 38934 | -3/Research | Spotted B-86 Titan 38939 | -3/Research | Destroyed B-86 Titan 38944 | -3/Research | Found Hvy. Reflective Plating 39125 | -3/Research | Identified exit to Armory 39125 | -3/Research | Identified exit to Testing 39184 | -3/Research | Repaired Cmb. Linear Gravjet 39397 | -3/Research | Discovered new exit (range 6) 39481 | -3/Research | Found Quantum Capacitor 39526 | -3/Research | Entered Armory 39528 | -3/Armory | Loaded intel: 2 recycling unit locations 39671 | -3/Armory | Build established: Mutant 39743 | -3/Armory | Fabricated X-77 Beamer? 39803 | -3/Armory | Found Unknown Protection 39803 | -3/Armory | Identified Hvy. Reactive Plating 40228 | -3/Armory | Identified Transdimensional Reconstructor 40228 | -3/Armory | Warped through subspace to slip node 40228 | -3/Armory | Discovered new exit (range 1) 40528 | -3/Armory | Found Unknown Launcher 40528 | -3/Armory | Identified Gamma Bomb Array 40553 | -3/Armory | Discovered new exit (range 7) 40641 | -3/Armory | Entered Lab 40641 | -3/Lab | Discovered new exit (range 9) 40657 | -3/Lab | Hidden lab's door opened automatically 40657 | -3/Lab | Sensor layout match revealed 40658 | -3/Lab | Gained access to the hidden lab's interior 41052 | -3/Lab | Unable to decrypt terminal 41216 | -3/Lab | Found Alien Artifact 41217 | -3/Lab | Identified Core Expander 41217 | -3/Lab | Installed Core Expander, added new Utility slot 41242 | -3/Lab | Found Integrated Reactor 41251 | -3/Lab | Installed Integrated Reactor, increased core energy generation (+10) 41304 | -3/Lab | Found Transdimensional Reconstructor 41369 | -3/Lab | Found Prototype Energy Gun 41369 | -3/Lab | Identified Hyp. EM Gauss Rifle 41374 | -3/Lab | Found Prototype Protection 41376 | -3/Lab | Found Prototype Hackware 41387 | -3/Lab | Found Alien Artifact 41410 | -3/Lab | Identified Hvy. Regenerative Plating 41443 | -3/Lab | Identified System Mapper 41444 | -3/Lab | Identified Quantum Router 41459 | -3/Lab | Entered Research 41459 | -2/Research | Evolved 2 slots: Propulsion x2 41460 | -2/Research | Identified exit to Quarantine 41478 | -2/Research | Found Prototype Device 41569 | -2/Research | Garrison activated, responded to threat 41672 | -2/Research | System corruption reached 10% 41680 | -2/Research | Garrison activated, responded to threat 41733 | -2/Research | Entered Quarantine 41734 | -2/Quarantine | Identified exit to Section 7 41768 | -2/Quarantine | Found Alien Energy Cannon 41814 | -2/Quarantine | Found Alien Slashing Weapon 41816 | -2/Quarantine | Identified Sigix Broadsword 41828 | -2/Quarantine | Found Alien Artifact 41890 | -2/Quarantine | Found Alien Artifact 41890 | -2/Quarantine | Identified Hpw. Transdimensional Reconstructor 41890 | -2/Quarantine | Warped through subspace 41979 | -2/Quarantine | Discovered new exit (range 4) 41989 | -2/Quarantine | Found Alien Impact Weapon 42040 | -2/Quarantine | Build established: Scavenger-Sprinter 42070 | -2/Quarantine | Identified Core Reset Matrix 42073 | -2/Quarantine | Identified Subatomic Replicator 42193 | -2/Quarantine | Identified Core Stripper 42203 | -2/Quarantine | Spotted Fortress 42212 | -2/Quarantine | Destroyed Fortress 42220 | -2/Quarantine | Found Vortex Chain Reactor 42232 | -2/Quarantine | Found Prototype Device 42232 | -2/Quarantine | Identified Thermal Barrier 42234 | -2/Quarantine | Found Prototype Device 42234 | -2/Quarantine | Identified Exp. EM Disruption Field 42240 | -2/Quarantine | Found Exp. Force Field 42344 | -2/Quarantine | Found Prototype Processor 42344 | -2/Quarantine | Identified Exp. Melee Analysis Suite 42354 | -2/Quarantine | Used Core Reset Matrix 42358 | -2/Quarantine | Detected hypermatrix surge 42358 | -2/Quarantine | Sensed 15 artifacts in vicinity 42372 | -2/Quarantine | Discovered exit to Section 7 (range 6) 42373 | -2/Quarantine | Entered Section 7 42374 | -2/Section 7 | Sensed 22 artifacts in vicinity 42377 | -2/Section 7 | Spotted S7 Guard 42424 | -2/Section 7 | Identified exit to Access 42450 | -2/Section 7 | Found Prototype Device 42450 | -2/Section 7 | Identified Exp. Thermal Shield 42465 | -2/Section 7 | Spotted B-90 Cyclops 42467 | -2/Section 7 | Destroyed B-90 Cyclops 42492 | -2/Section 7 | Found Integrated Mediator 42492 | -2/Section 7 | Installed Integrated Mediator, increased core attachment efficiency. 42507 | -2/Section 7 | Spotted S7 Guard 42520 | -2/Section 7 | Destroyed S7 Guard 42548 | -2/Section 7 | Found Integrated Thermoelectric Network 42573 | -2/Section 7 | Installed Integrated Thermoelectric Network, gained heat-energy exchange potential 42668 | -2/Section 7 | Found Integrity Redistributor 42743 | -2/Section 7 | Build established: Alien-Mutant 42885 | -2/Section 7 | Spotted S7 Guard 42895 | -2/Section 7 | Destroyed S7 Guard 42909 | -2/Section 7 | First assault squad dispatched 42912 | -2/Section 7 | Found Sigix Shearcannon 42919 | -2/Section 7 | Spotted S7 Guard 42969 | -2/Section 7 | Spotted Alpha 7 42970 | -2/Section 7 | Spotted Alpha 7 42990 | -2/Section 7 | Used Subatomic Replicator to replicate Integrity Redistributor 42993 | -2/Section 7 | Used Integrity Redistributor, redistributed integrity from core (-166) 42997 | -2/Section 7 | Spotted Executioner 42998 | -2/Section 7 | Spotted Executioner 43012 | -2/Section 7 | Spotted B-99 Colossus 43036 | -2/Section 7 | Found Integrated Reactor 43036 | -2/Section 7 | Installed Integrated Reactor, increased core energy generation (+10) 43050 | -2/Section 7 | Found LRC Insulator 43050 | -2/Section 7 | Installed LRC Insulator, gained EM resistance (25) 43051 | -2/Section 7 | Found LRC Insulator 43051 | -2/Section 7 | Installed LRC Insulator, gained EM resistance (25) 43123 | -2/Section 7 | Search patrols dispatched 43132 | -2/Section 7 | Entered Access 43132 | -1/Access | Evolved 2 slots: Power x1, Propulsion x1 43227 | -1/Access | Garrison activated, responded to threat 43339 | -1/Access | Identified exit to Surface 43417 | -1/Access | Search patrols dispatched 43424 | -1/Access | Spotted B-99 Colossus 43427 | -1/Access | Spotted B-99 Colossus 43536 | -1/Access | Discovered new exit (range 8) 43572 | -1/Access | Entered Command 43735 | -1/Command | Spotted B-99 Colossus 43822 | -1/Command | Search patrols dispatched 43945 | -1/Command | Destroyed 7 combat bots 43960 | -1/Command | Spotted M Guard 43961 | -1/Command | Spotted M Guard 43961 | -1/Command | Spotted Combat Programmer 43961 | -1/Command | Spotted Combat Programmer 43994 | -1/Command | Destroyed Combat Programmer 44018 | -1/Command | Destroyed Combat Programmer 44040 | -1/Command | Destroyed M Guard 44054 | -1/Command | Destroyed M Guard 44054 | -1/Command | All MAIN.C guards destroyed 44058 | -1/Command | Found Prototype Device 44058 | -1/Command | Identified AEGIS Remote Shield 44064 | -1/Command | Found AEGIS Remote Shield 44071 | -1/Command | Found Prototype Reactor 44071 | -1/Command | Identified Zero-point Reactor 44073 | -1/Command | Found Prototype Processor 44073 | -1/Command | Identified Exp. Targeting Computer 44079 | -1/Command | Found Prototype Energy Cannon 44079 | -1/Command | Identified Cld. Nova Cannon 44089 | -1/Command | Found Prototype Device 44089 | -1/Command | Identified Thermal Barrier 44095 | -1/Command | Found Zero-point Reactor 44120 | -1/Command | Build established: Alien-Sprinter 44121 | -1/Command | Search patrols dispatched 44234 | -1/Command | Met MAIN.C 44244 | -1/Command | 0b10 Conduit disabled 44246 | -1/Command | Destroyed MAIN.C Shell 44247 | -1/Command | MAIN.C activated Command garrisons 44263 | -1/Command | Destroyed MAIN.C 44265 | -1/Command | Discovered exit to Surface (range 34) 44265 | -1/Command | Discovered exit to Surface (range 89) 44265 | -1/Command | Extracted map data and part IDs from MAIN.C's data core 44266 | -1/Command | Found Exp. Powered Armor 44295 | -1/Command | Spotted B-99 Colossus 44413 | -1/Command | Found Zero-point Reactor 44415 | -1/Command | Found Zero-point Reactor 44417 | -1/Command | Found Exp. System Purifier 46527 | -1/Command | Found Adv. Force Booster 47231 | -1/Command | Phase Generator disabled 47499 | -1/Command | Build established: Alien-Mutant 47642 | -1/Command | Used Integrity Redistributor, redistributed integrity from core (-212) 47652 | -1/Command | Found Exp. Armor Integrity Analyzer 47694 | -1/Command | Warped through subspace to slip node 47694 | -1/Command | Discovered new exit (range 5) 47696 | -1/Command | Found Imp. Potential Cannon 47699 | -1/Command | Entered Access_0 47700 | -1/Access_0 | Sensed 3 artifacts in vicinity 47700 | -1/Access_0 | Met Architect 47716 | -1/Access_0 | Architect warped through subspace 47721 | -1/Access_0 | Destroyed A8 47750 | -1/Access_0 | A6 warped into view 47801 | -1/Access_0 | Architect warped through subspace 47814 | -1/Access_0 | Build established: Generator-Sprinter 47814 | -1/Access_0 | Destroyed A6 47815 | -1/Access_0 | Found Femtoactuators 47839 | -1/Access_0 | Architect warped through subspace 47857 | -1/Access_0 | Found Exp. Powered Armor 47859 | -1/Access_0 | Found Exp. Powered Armor 47876 | -1/Access_0 | Subspace Access Node disabled 47877 | -1/Access_0 | A5 warped into view 47903 | -1/Access_0 | Subspace Access Node disabled 47915 | -1/Access_0 | Architect warped through subspace 47947 | -1/Access_0 | Destroyed A5 47976 | -1/Access_0 | Core integrity fell below 50% 47979 | -1/Access_0 | A4 warped into view 47987 | -1/Access_0 | Architect warped through subspace 47999 | -1/Access_0 | Destroyed A4 48012 | -1/Access_0 | Subspace Access Node disabled 48066 | -1/Access_0 | Found Hpw. Transdimensional Reconstructor 48074 | -1/Access_0 | Architect warped through subspace 48087 | -1/Access_0 | Found Sigix Corpse 48109 | -1/Access_0 | Architect warped through subspace 48151 | -1/Access_0 | Architect warped through subspace 48184 | -1/Access_0 | Destroyed A2 48185 | -1/Access_0 | Extracted Singularity Gate Test 138-C access codes from A2's data core 48195 | -1/Access_0 | Architect warped through subspace 48232 | -1/Access_0 | Found Integrated Reactor 48232 | -1/Access_0 | Installed Integrated Reactor, increased core energy generation (+10) 48248 | -1/Access_0 | Architect warped through subspace 48257 | -1/Access_0 | A3 warped into view 48273 | -1/Access_0 | Destroyed A3 48280 | -1/Access_0 | Found Prototype Ballistic Gun 48289 | -1/Access_0 | Found Spectral Analyzer 48291 | -1/Access_0 | Found Prototype Device 48296 | -1/Access_0 | Architect warped through subspace 48296 | -1/Access_0 | Identified ST Field Compressor 48334 | -1/Access_0 | Found Exp. Powered Armor 48336 | -1/Access_0 | Found Exp. Powered Armor 48347 | -1/Access_0 | Architect warped through subspace 48350 | -1/Access_0 | Started Test 138-B, establishing a local singularity 48350 | -1/Access_0 | Started Test 138-C, cascade imminent 48350 | *** | Destroyed Tau Ceti IV! Last Messages --------------- 48336_ Dropped Exp. Powered Armor. 48345_ Quantum Shear penetrates Wall. 48345_ Quantum Shear penetrates Architect. Architect warps through subspace. 48350_ Connecting with Gate Controls... >>Gate Test 138-A Running Singularity Gate diagnostics... All systems nominal. >>Gate Test 138-B Preparing Singularity Gate activation... Stable singularity established. >>Gate Test 138-C Initiating Test 138-C... Warning: Experimental formulas incomplete. Potential effects include instability. Repeat command to confirm test. >>Gate Test 138-C Initiating Test 138-C... Applying incomplete calculations.... INSTABILITY DETECTED, CASCADE IMMINENT. Map ----- +----------------------------------------------------+ | ???????????????# ##?????????? | | ???????????????# ##########" #??????????? | | ???????????????# ????????# " #??????????? | | ???????????????# ????????# # #??????????? | | ???????????????# ????????### ###????????? | | ???????????????# ???###??# ###??????? | | ???????????????# ??## ??# #??????? | | ???????????????# ??# #?#!! ###??????? | | ???????????????# ??# ##!!] #????????? | | ???????????????# ??# #"%=%! ##????????? | | ???????????????# ???# !!!=! ##?????????? | | ??????????###### ###### ]%* "#??###?????? | | ???????????""""" """""# "##??# ##????? | | ???????????#"""" """"## ###### ##???? | | ??????????##" "#### !] ## ###?? | | ??????????#"" ""?##%!=! #?? | | ??????????#"" ""?#!!!!### ##?? | | ???????????#" "#?###=### ###### | | ???????????#" "#??#%*##!! #####"# | | ???????????#" "#??#***=!! """ " | | ???????????#" "#??#=##!! ##" | | ??????????##" "##?# !""" | | ??????????#"" ""#?#!" ### | | ??????????#"" ""#?#/###?# ######" | | ???????????#" "#??#%#???# #????#"" " | | ??????????##"""" @A""##?#]#???# #????###"# | | ??????????#""""" """""###!##??# #??????### | | ??????????###### #######" "#??# #????????? | | ???????????????# ######"" ##??# ?????????? | | ???????????????# !! #???# ?????????? | | ???????????????# =%! ###???# ?????????? | | ???????????????# !!####????? ?????????? | | ???????????????# !##????????##?????????? | | ??????????????## ###???????????????????? | | ??????????????# #"##????#?????????????? | | ??????????????## #"#### #?????????????? | | ???????????????# ## #?????????????? | | ???????????????# ##### ##"## #?????????????? | | ???????????????## #???## ###"# #?????????????? | | ????????????????# ###??#### #?????????????? | | ????????????????# #?????# ####?????????????? | | ????????????????## #?????# #????????????????? | | ?????????????????# ##????# ####?????????????? | | ?????????????????# ###### # ##????????????? | | ????????????????## #????????????? | | ???????????????## ###### ##???????????? | | ??????????????## ##????## #???????????? | | ??????????????# #??????## ##??????????? | | ??????????????# #???????## ##?????????? | | ??????????????# ##????????# #?????????? | +----------------------------------------------------+ Best States ------------- Heat Dissipation 178 Coolant Potential 120 Energy Generation 129 Energy Capacity 1700 Matter Stores 300 Matter Capacity 300 Sight Range 24 Robot Scan Range 20 Terrain Scan Range 16 Terrain Scan Density 85 Cloak Strength 4 Additional Mass Support 25 EM Shielding 4 Corruption Containment 12 Armor Coverage 1300 Resistance: KI 40 Resistance: TH 50 Resistance: EX 90 Resistance: EM 100 Resistance: I 15 Resistance: S 15 Resistance: P 15 Weapon Shielding 100 Weapon Cycling 25 Melee Speed Boost 50 Phase Shifting 8 Evasion (%) 81 Targeting Accuracy 20 Core Analysis 8 Armor Integrity Analysis 50 Recoil Reduction 6 Energy Filtering 30 Salvage Targeting 1 Offensive Hacking 20 Defensive Hacking 25 Authchip Count 1 Item Schematics ----------------- None Robot Schematics ------------------ None Fabricated ------------ X-77 Beamer | x2 | -4/Factory | Authchip X-77 Beamer | x2 | -3/Armory | Preloaded Alien Tech Used ----------------- Integrated Reactor Transdimensional Reconstructor Core Expander Sigix Broadsword High-powered Transdimensional Reconstructor Core Stripper Core Reset Matrix Integrated Mediator Integrated Thermoelectric Network Subatomic Replicator Integrity Redistributor LRC Insulator Sigix Shearcannon Achievements -------------- None Challenges ------------ None Game ------ Seed AluminumLaserEdition Manual? 0 Play Time 09:43:03 Cumulative 403.5 hours Start 2022.06.18 @ 15:33:40 End 2022.06.23 @ 00:33:08 Sessions 17 Manual Loads 0 Difficulty Rogue Special Mode None Game No. 407 Rogue 407 Adventurer 0 Explorer 0 Win Type 5 Total 31 Types 18/3/3/1/2/1/3/0/0 Lore% 91 Gallery% 92 Achievement% 81 Wizard Run 0 Options --------- ASCII 0 Keyboard 0 Movement Mouse Keybinds 0 Fullscreen 2 Font 18/SmallcapsGlow Map View 76x50 Tactical HUD 1 Map Filters NONE Filters NONE Steam 1 RUN: 18388978-e221-4ffb-9ff2-ca5491eb63d1